Workbook

Sheet Price Data
R1: Annual
V2: Elec | W2: Gas | X2: HR | AF2: Elec | AG2: Gas | AH2: HR
G3: Elec | H3: Gas | I3: HR
C4: Variable Cost | D4: 2 | E4: USD/MWH | F4: Stdev | G4: =STDEV(G26:G2650) -> 0.1312543872 | H4: =STDEV(H26:H2650) -> 0.04904967075 | I4: =STDEV(I26:I2650) -> 0.1288725243 | R4: Stdev | T4: Std Dev | V4: =STDEV(V26:V35) -> 0.3017506191 | W4: =STDEV(W26:W35) -> 0.3684886313 | X4: =STDEV(X26:X35) -> 0.09071625596 | AC4: Std Dev | AF4: =STDEV(AF26:AF156) -> 0.1866610462 | AG4: =STDEV(AG26:AG156) -> 0.1412536884 | AH4: =STDEV(AH26:AH156) -> 0.1449860195
C5: Heat Rate | D5: 7 | E5: BTU/MWH | F5: Days | G5: 252 | H5: =G5 -> 252 | I5: =H5 -> 252 | V5: 1 | W5: 1 | X5: 1 | AC5: Periods | AF5: 12 | AG5: 12 | AH5: 12
C6: Load Factor | D6: 1 | F6: Ann Vol | G6: =G4*(G5)^(1/2) -> 2.083598801 | H6: =H4*(H5)^(1/2) -> 0.7786393841 | I6: =I4*(I5)^(1/2) -> 2.0457879 | T6: Annual Vol | V6: =V4*(V5)^(1/2) -> 0.3017506191 | W6: =W4*(W5)^(1/2) -> 0.3684886313 | X6: =X4*(X5)^(1/2) -> 0.09071625596 | AC6: Volatility | AF6: =AF4*(AF5)^(1/2) -> 0.6466128316 | AG6: =AG4*(AG5)^(1/2) -> 0.4893171301 | AH6: =AH4*(AH5)^(1/2) -> 0.5022463045
F7: Absolute Stdev | G7: =STDEV(C25:C2650) -> 24.35822093 | H7: =STDEV(E25:E2650) -> 2.304828186 | I7: =STDEV(F25:F2650) -> 3.265662703 | T7: Absolute Stdev | V7: =STDEV(S25:S35) -> 16.40195524 | W7: =STDEV(T25:T35) -> 1.933120202 | X7: =STDEV(U25:U35) -> 1.246193235
F8: Min | G8: =MIN(C25:C2650) -> 25.13 | H8: =MIN(E25:E2650) -> 1.69 | I8: =MIN(F25:F2650) -> 5.761794277
F9: Max | G9: =MAX(C25:C2650) -> 311.75 | H9: =MAX(E25:E2650) -> 18.48 | I9: =MAX(F25:F2650) -> 54.40663176
F11: Correlation Between Elec and Gas | I11: =CORREL(C25:C2650,E25:E2650) -> 0.790698814 | T11: Correlation Between Elec and Gas | X11: =CORREL(S25:S35,T25:T35) -> 0.9881347681
F12: Correlation Between Returns | I12: =CORREL(G26:G2650,H26:H2650) -> 0.2349692557 | T12: Correlation Between Returns | X12: =CORREL(V26:V35,W26:W35) -> 0.9820524308
F14: Percent of Elec Var from Gas | I14: =RSQ(C25:C2650,E25:E2650) -> 0.6252046144 | M14: Prob | N14: 1 | O14: =1-N14 -> 0 | T14: Pct Var in Elec Price from Nat Gas | X14: =RSQ(S25:S35,T25:T35) -> 0.9764103199
F15: Pct of Change | I15: =RSQ(G26:G2650,H26:H2650) -> 0.05521055113 | M15: Normal | N15: =NORMSINV(N14) -> 7.934739878
AO16: Volatility | AQ16: =STDEV(AQ26:AQ35) -> 0.2550558015
C17: Est Mean Reversion in Elec | H17: Slope | I17: =SLOPE(J26:J2650,K26:K2650) -> -0.1127129679 | J17: =-LN(1+I17) -> 0.1195867503
C18: Est Mean Reversion in Gas | H18: Slope | I18: =SLOPE(L26:L2650,M26:M2650) -> -0.01212296083 | J18: =-LN(1+I18) -> 0.01219704326 | M18: max | N18: =MAX(N26:N2650) -> 10.23890879
B20: Avg | C20: =AVERAGE(C25:C2650) -> 62.34839756
B21: Stdev | C21: =STDEV(C25:C2650) -> 24.35822093 | M21: Average | N21: =AVERAGE(C25:C2650) -> 62.34839756
B22: Std/Avg | C22: =C21/C20 -> 0.3906791815 | G22: =AVERAGE(G26:G2650) -> -0.0002593141791 | M22: Std Dev | N22: =STDEV(C25:C2650) -> 24.35822093
BH23: =SUM(BH25:BH68) -> 2624
C24: Wtd Avg Price $/MWh | D24: Match | E24: Nat Gas | F24: Market Heat Rate | G24: Change in Electricity Price | H24: Change in Gas Price | I24: Change in Heat Rate | J24: Electricity Price Change | K24: Electricity Last Price | L24: Nat Gas Change | M24: Nat Gas Last Price | N24: Elect Price Divided by Std Dev | S24: Electricity Price | T24: Nat Gas Price | U24: Heat Rate | V24: Change in Elec Price | W24: Change in Nat Gas Price | X24: Change in HR | AC24: Elec Price | AD24: Gas Price | AE24: Heat Rate | AF24: Change in Elec Price | AG24: Change in Gas Price | AH24: Change in HR | AK24: Energy Value per Day | AL24: Year | AN24: Total Value per Year | AO24: Value/kW/Yr | AP24: Total Value | AQ24: Chg | AY24: Freq | AZ24: Prob | BA24: Normal | BB24: Incremenat | BH24: Freq | BI24: Prob | BJ24: Normal
A25: 2001-01-03 | B25: =TEXT(A25,"mmm-yy") -> Jan-01 | C25: 74.25 | D25: =MATCH(A25,'Natural Gas'!A:A) -> 1005 | E25: =INDEX('Natural Gas'!B:B,'Price Data'!D25) -> 9.71 | F25: =C25/E25 -> 7.646755922 | P25: =YEAR(A25) -> 2001 | R25: 2001 | S25: =AVERAGEIF(P:P,R25,C:C) -> 47.16426724 | T25: =AVERAGEIF(P:P,R25,E:E) -> 3.880215517 | U25: =AVERAGEIF(P:P,R25,F:F) -> 13.30116918 | AA25: =A25 -> 2001-01-03 | AB25: =TEXT(AA25,"mmm-yy") -> Jan-01 | AC25: =AVERAGEIF(B:B,AB25,C:C) -> 70.74111111 | AD25: =AVERAGEIF(B:B,AB25,E:E) -> 7.957222222 | AE25: =AVERAGEIF(B:B,AB25,F:F) -> 8.974356259 | AK25: =MAX((C25-E25*$D$5-$D$4),0) -> 4.28 | AL25: =YEAR(A25) -> 2001 | AM25: 2001 | AN25: =SUMIF(AL:AL,AM25,AK:AK) -> 4176.64 | AO25: =AN25*24/1000 -> 100.23936 | AP25: =AO25*$D$6 -> 100.23936 | AT25: Max | AU25: =MAX(G26:G2650) -> 1.090052397 | AX25: 1 | AY25: =FREQUENCY(G26:G2650,AX25:AX67) -> 0 | AZ25: =AY25/$AY$70 -> 0 | BA25: =NORMDIST(AX25,0,$G$4,1) -> 1 | BD25: Max | BE25: =MAX(N26:N2650) -> 10.23890879 | BG25: 6 | BH25: =FREQUENCY(N26:N2650,BG25:BG49) -> 2 | BI25: =BH25/$BH$23 -> 0.000762195122 | BJ25: =NORMDIST(BG25,0,1,0)/2 -> 3.037941425e-09
A26: 2001-01-08 | B26: =TEXT(A26,"mmm-yy") -> Jan-01 | C26: 82 | D26: =MATCH(A26,'Natural Gas'!A:A) -> 1008 | E26: =INDEX('Natural Gas'!B:B,'Price Data'!D26) -> 10.31 | F26: =C26/E26 -> 7.953443259 | G26: =LN(C26/C25) -> 0.09928146958 | H26: =LN(E26/E25) -> 0.05995801573 | I26: =LN(F26/F25) -> 0.03932345386 | J26: =C26-C25 -> 7.75 | K26: =C25 -> 74.25 | L26: =E26-E25 -> 0.6 | M26: =E25 -> 9.71 | N26: =(C26-$N$21)/$N$22 -> 0.8067749486 | P26: =YEAR(A26) -> 2001 | R26: =R25+1 -> 2002 | S26: 43.23623482 | T26: 3.338866397 | U26: 13.1362688 | V26: =LN(S26/S25) -> -0.0869576433 | W26: =LN(T26/T25) -> -0.1502593506 | X26: =LN(U26/U25) -> -0.01247492411 | AA26: =EDATE(AA25,1) -> 2001-02-03 | AB26: =TEXT(AA26,"mmm-yy") -> Feb-01 | AC26: 50.24210526 | AD26: 5.627368421 | AE26: 8.961847709 | AF26: =LN(AC26/AC25) -> -0.3421734652 | AG26: =LN(AD26/AD25) -> -0.3464380598 | AH26: =LN(AE26/AE25) -> -0.001394782472 | AK26: =MAX((C26-E26*$D$5-$D$4),0) -> 7.83 | AL26: =YEAR(A26) -> 2001 | AM26: =AM25+1 -> 2002 | AN26: 4412.45 | AO26: =AN26*24/1000 -> 105.8988 | AP26: =AO26*$D$6 -> 105.8988 | AQ26: =LN(AP26/AP25) -> 0.05492299521 | AT26: Min | AU26: =MIN(G26:G2650) -> -1.095596038 | AX26: =AX25-5% -> 0.95 | AY26: 0 | AZ26: =AY26/$AY$70 -> 0 | BA26: =NORMDIST(AX26,0,$G$4,1) -> 1 | BB26: =BA25-BA26 -> 2.151612222e-13 | BD26: Min | BE26: =MIN(N26:N2650) -> -1.527960424 | BG26: =BG25-0.5 -> 5.5 | BH26: 1 | BI26: =BH26/$BH$23 -> 0.000381097561 | BJ26: =NORMDIST(BG26,0,1,0)/2 -> 5.384880021e-08
A27: 2001-01-09 | B27: =TEXT(A27,"mmm-yy") -> Jan-01 | C27: 88.67 | D27: =MATCH(A27,'Natural Gas'!A:A) -> 1009 | E27: =INDEX('Natural Gas'!B:B,'Price Data'!D27) -> 9.95 | F27: 8.911557789 | G27: =LN(C27/C26) -> 0.07820236613 | H27: =LN(E27/E26) -> -0.03554174686 | I27: =LN(F27/F26) -> 0.113744113 | J27: =C27-C26 -> 6.67 | K27: =C26 -> 82 | L27: =E27-E26 -> -0.36 | M27: =E26 -> 10.31 | N27: =(C27-$N$21)/$N$22 -> 1.080604471 | P27: =YEAR(A27) -> 2001 | R27: =R26+1 -> 2003 | S27: 60.57316092 | T27: 5.572413793 | U27: 10.89111861 | V27: =LN(S27/S26) -> 0.3371729932 | W27: 0.5121969689 | X27: -0.1874293651 | AA27: =EDATE(AA26,1) -> 2001-03-03 | AB27: Mar-01 | AC27: 53.884 | AD27: 5.2475 | AE27: 10.27435365 | AF27: =LN(AC27/AC26) -> 0.06998016243 | AG27: =LN(AD27/AD26) -> -0.06989013939 | AH27: =LN(AE27/AE26) -> 0.1366744299 | AK27: 17.02 | AL27: 2001 | AM27: =AM26+1 -> 2003 | AN27: 3404.53 | AO27: 81.70872 | AP27: 81.70872 | AQ27: =LN(AP27/AP26) -> -0.259323193 | AX27: =AX26-5% -> 0.9 | AY27: 1 | AZ27: 0.000381097561 | BA27: 1 | BB27: =BA26-BA27 -> 3.290256956e-12 | BG27: =BG26-0.5 -> 5 | BH27: 3 | BI27: 0.001143292683 | BJ27: 7.433597574e-07
A28: 2001-01-10 | B28: Jan-01 | C28: 75.25 | D28: =MATCH(A28,'Natural Gas'!A:A) -> 1010 | E28: =INDEX('Natural Gas'!B:B,'Price Data'!D28) -> 9.91 | F28: 7.593340061 | G28: -0.1641057098 | H28: -0.004028202829 | I28: -0.1600775069 | J28: -13.42 | K28: 88.67 | L28: -0.04 | M28: 9.95 | N28: 0.5296611143 | P28: 2001 | R28: 2004 | S28: 61.38782576 | T28: 5.887598253 | U28: 10.44279072 | V28: 0.01335963218 | W28: 0.05501983156 | X28: -0.0420357939 | AA28: 2001-04-03 | AB28: Apr-01 | AC28: 51.265 | AD28: 5.225625 | AE28: 9.826490494 | AF28: -0.04982532971 | AG28: -0.00417736479 | AH28: -0.04456900272 | AK28: 3.88 | AL28: 2001 | AM28: 2004 | AN28: 4161.9921 | AO28: 99.8878104 | AP28: 99.8878104 | AQ28: 0.2008869321 | AX28: 0.85 | AY28: 0 | AZ28: 0 | BA28: 1 | BB28: 4.358291505e-11 | BG28: 4.5 | BH28: 6 | BI28: 0.002286585366 | BJ28: 7.991870553e-06
A29: 2001-01-11 | B29: Jan-01 | C29: 75.75 | D29: =MATCH(A29,'Natural Gas'!A:A) -> 1011 | E29: =INDEX('Natural Gas'!B:B,'Price Data'!D29) -> 8.95 | F29: 8.463687151 | G29: 0.00662254076 | H29: -0.1018908161 | I29: 0.1085133568 | J29: 0.5 | K29: 75.25 | L29: -0.96 | M29: 9.91 | N29: 0.5501880649 | P29: 2001 | R29: 2005 | S29: 87.8713125 | T29: 8.585721154 | U29: 10.45600421 | V29: 0.3586618482 | W29: 0.3772523448 | X29: 0.001264521915 | AA29: 2001-05-03 | AB29: May-01 | AC29: 57.929 | AD29: 4.2105 | AE29: 13.60168941 | AF29: 0.1222098646 | AG29: -0.2159930024 | AH29: 0.3251121558 | AK29: 11.1 | AL29: 2001 | AM29: 2005 | AN29: 5360.423 | AO29: 128.650152 | AP29: 128.650152 | AQ29: 0.25304906 | AX29: 0.8 | AY29: 0 | AZ29: 0 | BA29: 0.9999999995 | BB29: 4.999686221e-10 | BG29: 4 | BH29: 5 | BI29: 0.001905487805 | BJ29: 6.691511288e-05
A30: 2001-01-12 | B30: Jan-01 | C30: 74.5 | D30: =MATCH(A30,'Natural Gas'!A:A) -> 1012 | E30: =INDEX('Natural Gas'!B:B,'Price Data'!D30) -> 8.75 | F30: 8.514285714 | G30: -0.016639319 | H30: -0.02259983192 | I30: 0.005960512913 | J30: -1.25 | K30: 75.75 | L30: -0.2 | M30: 8.95 | N30: 0.4988706882 | P30: 2001 | R30: 2006 | S30: 69.67608112 | T30: 6.715665236 | U30: 10.42539046 | V30: -0.2320162964 | W30: -0.2456576002 | X30: -0.002932157386 | AA30: 2001-06-03 | AB30: Jun-01 | AC30: 48.49315789 | AD30: 3.746315789 | AE30: 13.05478298 | AF30: -0.1777954091 | AG30: -0.1168085046 | AH30: -0.04103942805 | AK30: 11.25 | AL30: 2001 | AM30: 2006 | AN30: 4815.2769 | AO30: 115.5666456 | AP30: 115.5666456 | AQ30: -0.1072493385 | AX30: 0.75 | AY30: 2 | AZ30: 0.000762195122 | BA30: 0.9999999945 | BB30: 4.967408374e-09 | BG30: 3.5 | BH30: 20 | BI30: 0.00762195122 | BJ30: 0.0004363413475
A31: 2001-01-15 | B31: Jan-01 | C31: 77.75 | D31: =MATCH(A31,'Natural Gas'!A:A) -> 1012 | E31: =INDEX('Natural Gas'!B:B,'Price Data'!D31) -> 8.75 | F31: 8.885714286 | G31: 0.04269942567 | H31: 0 | I31: 0.04269942567 | J31: 3.25 | K31: 74.5 | L31: 0 | M31: 8.75 | N31: 0.6322958677 | P31: 2001 | R31: 2007 | S31: 77.32879845 | T31: 6.954069767 | U31: 11.13459405 | V31: 0.1042093507 | W31: 0.034884174 | X31: 0.06581262205 | AA31: 2001-07-03 | AB31: Jul-01 | AC31: 45.96380952 | AD31: 3.109047619 | AE31: 14.83878631 | AF31: -0.0535683763 | AG31: -0.1864564534 | AH31: 0.1280898708 | AK31: 14.5 | AL31: 2001 | AM31: 2007 | AN31: 6875.78 | AO31: 165.01872 | AP31: 165.01872 | AQ31: 0.3562115403 | AX31: 0.7 | AY31: 1 | AZ31: 0.000381097561 | BA31: 0.9999999517 | BB31: 4.27459308e-08 | BG31: 3 | BH31: 30 | BI31: 0.01143292683 | BJ31: 0.002215924206
A32: 2001-01-16 | B32: Jan-01 | C32: 78.38 | D32: =MATCH(A32,'Natural Gas'!A:A) -> 1013 | E32: =INDEX('Natural Gas'!B:B,'Price Data'!D32) -> 8.16 | F32: 9.605392157 | G32: 0.008070241712 | H32: -0.06980953139 | I32: 0.07787977311 | J32: 0.63 | K32: 77.75 | L32: -0.59 | M32: 8.75 | N32: 0.6581598256 | P32: 2001 | R32: 2008 | S32: 90.16039683 | T32: 8.850992063 | U32: 10.23118254 | V32: 0.1535238305 | W32: 0.2412024841 | X32: -0.08461667447 | AA32: 2001-08-03 | AB32: Aug-01 | AC32: 53.88705882 | AD32: 2.928235294 | AE32: 18.36833831 | AF32: 0.1590360157 | AG32: -0.05991649459 | AH32: 0.2133839893 | AK32: 19.26 | AL32: 2001 | AM32: 2008 | AN32: 6683.14 | AO32: 160.39536 | AP32: 160.39536 | AQ32: -0.02841715468 | AX32: 0.65 | AY32: 8 | AZ32: 0.003048780488 | BA32: 0.9999996331 | BB32: 3.186064076e-07 | BG32: 2.5 | BH32: 57 | BI32: 0.02172256098 | BJ32: 0.008764150247
A33: 2001-01-17 | B33: Jan-01 | C33: 75 | D33: =MATCH(A33,'Natural Gas'!A:A) -> 1014 | E33: =INDEX('Natural Gas'!B:B,'Price Data'!D33) -> 7.85 | F33: 9.554140127 | G33: -0.04408067924 | H33: -0.03873063718 | I33: -0.005350042053 | J33: -3.38 | K33: 78.38 | L33: -0.31 | M33: 8.16 | N33: 0.5193976389 | P33: 2001 | R33: 2009 | S33: 46.29787402 | T33: 3.950629921 | U33: 11.63323797 | V33: -0.6664942286 | W33: -0.8066545104 | X33: 0.1284261742 | AA33: 2001-09-03 | AB33: Sep-01 | AC33: 39.90157895 | AD33: 2.191578947 | AE33: 18.30879631 | AF33: -0.3004744573 | AG33: -0.2897776883 | AH33: -0.003246821346 | AK33: 18.05 | AL33: 2001 | AM33: 2009 | AN33: 4227.44 | AO33: 101.45856 | AP33: 101.45856 | AQ33: -0.4579913281 | AX33: 0.6 | AY33: 2 | AZ33: 0.000762195122 | BA33: 0.9999975762 | BB33: 2.056952317e-06 | BG33: 2 | BH33: 83 | BI33: 0.03163109756 | BJ33: 0.02699548326
A34: 2001-01-18 | B34: Jan-01 | C34: 71.25 | D34: =MATCH(A34,'Natural Gas'!A:A) -> 1015 | E34: =INDEX('Natural Gas'!B:B,'Price Data'!D34) -> 7.09 | F34: 10.0493653 | G34: -0.05129329439 | H34: -0.1018281913 | I34: 0.05053489686 | J34: -3.75 | K34: 75 | L34: -0.76 | M34: 7.85 | N34: 0.3654455087 | P34: 2001 | R34: 2010 | S34: 55.83675 | T34: 4.410416667 | U34: 12.71020518 | V34: 0.1873362123 | W34: 0.1100941273 | X34: 0.08853888564 | AA34: 2001-10-03 | AB34: Oct-01 | AC34: 36.58913043 | AD34: 2.460869565 | AE34: 15.2575916 | AF34: -0.08666468209 | AG34: 0.1158925047 | AH34: -0.1823044278 | AK34: 19.62 | AL34: 2001 | AM34: 2010 | AN34: 5511.32 | AO34: 132.27168 | AP34: 132.27168 | AQ34: 0.26520755 | AX34: 0.55 | AY34: 1 | AZ34: 0.000381097561 | BA34: 0.9999860729 | BB34: 1.150325713e-05 | BG34: 1.5 | BH34: 124 | BI34: 0.04725609756 | BJ34: 0.06475879783
A35: 2001-01-19 | B35: Jan-01 | C35: 74.4 | D35: =MATCH(A35,'Natural Gas'!A:A) -> 1016 | E35: =INDEX('Natural Gas'!B:B,'Price Data'!D35) -> 7.61 | F35: 9.776609724 | G35: 0.04326112269 | H35: 0.07077783133 | I35: -0.02751670864 | J35: 3.15 | K35: 71.25 | L35: 0.52 | M35: 7.09 | N35: 0.4947652981 | P35: 2001 | R35: 2011 | S35: 52.8025 | T35: 4.004365079 | U35: 13.15643131 | V35: -0.05587371668 | W35: -0.09658413127 | X35: 0.03450548387 | AA35: 2001-11-03 | AB35: Nov-01 | AC35: 32.69952381 | AD35: 2.321904762 | AE35: 14.34707092 | AF35: -0.1123906982 | AG35: -0.05812690239 | AH35: -0.06153138457 | AK35: 19.13 | AL35: 2001 | AM35: 2011 | AN35: 5738.53 | AO35: 137.72472 | AP35: 137.72472 | AQ35: 0.04039892107 | AX35: 0.5 | AY35: 9 | AZ35: 0.003429878049 | BA35: 0.9999303468 | BB35: 5.572613314e-05 | BG35: 1 | BH35: 269 | BI35: 0.1025152439 | BJ35: 0.1209853623
A36: 2001-01-23 | B36: Jan-01 | C36: 67 | D36: =MATCH(A36,'Natural Gas'!A:A) -> 1018 | E36: =INDEX('Natural Gas'!B:B,'Price Data'!D36) -> 7.02 | F36: 9.544159544 | G36: -0.1047633224 | H36: -0.08069995384 | I36: -0.02406336861 | J36: -7.4 | K36: 74.4 | L36: -0.59 | M36: 7.61 | N36: 0.1909664278 | P36: 2001 | AA36: 2001-12-03 | AB36: Dec-01 | AC36: 29.92684211 | AD36: 2.317894737 | AE36: 13.01661344 | AF36: -0.08860470845 | AG36: -0.001728534202 | AH36: -0.09731930577 | AK36: 15.86 | AL36: 2001 | AX36: 0.45 | AY36: 8 | AZ36: 0.003048780488 | BA36: 0.9996964885 | BB36: 0.0002338583254 | BG36: 0.5 | BH36: 516 | BI36: 0.1966463415 | BJ36: 0.1760326634
A37: 2001-01-24 | B37: Jan-01 | C37: 66.33 | D37: =MATCH(A37,'Natural Gas'!A:A) -> 1019 | E37: =INDEX('Natural Gas'!B:B,'Price Data'!D37) -> 6.81 | F37: 9.740088106 | G37: -0.01005033585 | H37: -0.03037109788 | I37: 0.02032076202 | J37: -0.67 | K37: 67 | L37: -0.21 | M37: 7.02 | N37: 0.1634603138 | P37: 2001 | AA37: 2002-01-03 | AB37: Jan-02 | AC37: 29.90272727 | AD37: 2.315909091 | AE37: 12.91599105 | AF37: -0.0008061175801 | AG37: -0.0008570263776 | AH37: -0.007760338572 | AK37: 16.66 | AL37: 2001 | AX37: 0.4 | AY37: 6 | AZ37: 0.002286585366 | BA37: 0.9988462983 | BB37: 0.0008501901392 | BG37: 0 | BH37: 567 | BI37: 0.2160823171 | BJ37: 0.1994711402
A38: 2001-01-25 | B38: Jan-01 | C38: 63.38 | D38: =MATCH(A38,'Natural Gas'!A:A) -> 1020 | E38: =INDEX('Natural Gas'!B:B,'Price Data'!D38) -> 6.81 | F38: 9.306901615 | G38: -0.04549392927 | H38: 0 | I38: -0.04549392927 | J38: -2.95 | K38: 66.33 | L38: 0 | M38: 6.81 | N38: 0.04235130473 | P38: 2001 | AA38: 2002-02-03 | AB38: Feb-02 | AC38: 28.875 | AD38: 2.3165 | AE38: 12.49071676 | AF38: -0.03497352053 | AG38: 0.0002551195641 | AH38: -0.03348045112 | AK38: 13.71 | AL38: 2001 | AX38: 0.35 | AY38: 17 | AZ38: 0.006478658537 | BA38: 0.9961686036 | BB38: 0.002677694771 | BG38: -0.5 | BH38: 660 | BI38: 0.2515243902 | BJ38: 0.1760326634
A39: 2001-01-26 | B39: Jan-01 | C39: 61.62 | D39: =MATCH(A39,'Natural Gas'!A:A) -> 1021 | E39: =INDEX('Natural Gas'!B:B,'Price Data'!D39) -> 7 | F39: 8.802857143 | G39: -0.02816186109 | H39: 0.02751802889 | I39: -0.05567988999 | J39: -1.76 | K39: 63.38 | L39: 0.19 | M39: 6.81 | N39: -0.02990356172 | P39: 2001 | AA39: 2002-03-03 | AB39: Mar-02 | AC39: 34.47857143 | AD39: 3.035714286 | AE39: 11.35627444 | AF39: 0.1773618442 | AG39: 0.2703893204 | AH39: -0.09521530382 | AK39: 10.62 | AL39: 2001 | AX39: 0.3 | AY39: 20 | AZ39: 0.00762195122 | BA39: 0.9888622741 | BB39: 0.007306329465 | BG39: -1 | BH39: 280 | BI39: 0.1067073171 | BJ39: 0.1209853623
A40: 2001-01-29 | B40: Jan-01 | C40: 58.8 | D40: =MATCH(A40,'Natural Gas'!A:A) -> 1022 | E40: =INDEX('Natural Gas'!B:B,'Price Data'!D40) -> 6.76 | F40: 8.698224852 | G40: -0.04684463826 | H40: -0.034887259 | I40: -0.01195737926 | J40: -2.82 | K40: 61.62 | L40: -0.24 | M40: 7 | N40: -0.1456755636 | P40: 2001 | AA40: 2002-04-03 | AB40: Apr-02 | AC40: 37.61136364 | AD40: 3.426818182 | AE40: 11.01216416 | AF40: 0.08696821606 | AG40: 0.1211854406 | AH40: -0.03076991067 | AK40: 9.48 | AL40: 2001 | AX40: 0.25 | AY40: 35 | AZ40: 0.01333841463 | BA40: 0.9715903459 | BB40: 0.01727192815 | BG40: -1.5 | BH40: 1 | BI40: 0.000381097561 | BJ40: 0.06475879783
A41: 2001-01-30 | B41: Jan-01 | C41: 55.12 | D41: =MATCH(A41,'Natural Gas'!A:A) -> 1023 | E41: =INDEX('Natural Gas'!B:B,'Price Data'!D41) -> 5.96 | F41: 9.248322148 | G41: -0.0646292282 | H41: -0.125952409 | I41: 0.06132318078 | J41: -3.68 | K41: 58.8 | L41: -0.8 | M41: 6.76 | N41: -0.2967539208 | P41: 2001 | AA41: 2002-05-03 | AB41: May-02 | AC41: 42.50090909 | AD41: 3.498181818 | AE41: 12.18784234 | AF41: 0.122219237 | AG41: 0.02061116613 | AH41: 0.1014384306 | AK41: 11.4 | AL41: 2001 | AX41: 0.2 | AY41: 69 | AZ41: 0.02629573171 | BA41: 0.9362154864 | BB41: 0.03537485956 | BG41: -2 | BH41: 0 | BI41: 0 | BJ41: 0.02699548326
A42: 2001-01-31 | B42: Jan-01 | C42: 53.89 | D42: =MATCH(A42,'Natural Gas'!A:A) -> 1024 | E42: =INDEX('Natural Gas'!B:B,'Price Data'!D42) -> 5.83 | F42: 9.243567753 | G42: -0.02256769476 | H42: -0.02205348071 | I42: -0.0005142140451 | J42: -1.23 | K42: 55.12 | L42: -0.13 | M42: 5.96 | N42: -0.3472502195 | P42: 2001 | AA42: 2002-06-03 | AB42: Jun-02 | AC42: 40.6455 | AD42: 3.2615 | AE42: 12.41537574 | AF42: -0.04463733732 | AG42: -0.07005614075 | AH42: 0.01849675838 | AK42: 11.08 | AL42: 2001 | AX42: 0.15 | AY42: 141 | AZ42: 0.0537347561 | BA42: 0.8734431139 | BB42: 0.06277237243 | BG42: -2.5 | BH42: 0 | BI42: 0 | BJ42: 0.008764150247
A43: 2001-02-01 | B43: Feb-01 | C43: 52.86 | D43: =MATCH(A43,'Natural Gas'!A:A) -> 1025 | E43: =INDEX('Natural Gas'!B:B,'Price Data'!D43) -> 5.82 | F43: 9.082474227 | G43: -0.01929802277 | H43: -0.001716738619 | I43: -0.01758128415 | J43: -1.03 | K43: 53.89 | L43: -0.01 | M43: 5.83 | N43: -0.3895357379 | P43: 2001 | AA43: 2002-07-03 | AB43: Jul-02 | AC43: 52.29952381 | AD43: 2.989047619 | AE43: 17.38921724 | AF43: 0.2520991373 | AG43: -0.08723239765 | AH43: 0.3369146318 | AK43: 10.12 | AL43: 2001 | AX43: 0.1 | AY43: 330 | AZ43: 0.1257621951 | BA43: 0.7769339758 | BB43: 0.0965091381 | BG43: -3 | BH43: 0 | BI43: 0 | BJ43: 0.002215924206
A44: 2001-02-02 | B44: Feb-01 | C44: 58.35 | D44: =MATCH(A44,'Natural Gas'!A:A) -> 1026 | E44: =INDEX('Natural Gas'!B:B,'Price Data'!D44) -> 6.76 | F44: 8.631656805 | G44: 0.09881244956 | H44: 0.1497226283 | I44: -0.05091017876 | J44: 5.49 | K44: 52.86 | L44: 0.94 | M44: 5.82 | N44: -0.1641498193 | P44: 2001 | AA44: 2002-08-03 | AB44: Aug-02 | AC44: 57.34272727 | AD44: 3.087727273 | AE44: 18.79962514 | AF44: 0.09205875645 | AG44: 0.03248049524 | AH44: 0.07798661473 | AK44: 9.03 | AL44: 2001 | AX44: 0.05 | AY44: 621 | AZ44: 0.2366615854 | BA44: 0.648375984 | BB44: 0.1285579918 | BG44: -3.5 | BH44: 0 | BI44: 0 | BJ44: 0.0004363413475
A45: 2001-02-05 | B45: Feb-01 | C45: 51.46 | D45: =MATCH(A45,'Natural Gas'!A:A) -> 1027 | E45: =INDEX('Natural Gas'!B:B,'Price Data'!D45) -> 6.15 | F45: 8.367479675 | G45: -0.1256545519 | H45: -0.09457080824 | I45: -0.03108374364 | J45: -6.89 | K45: 58.35 | L45: -0.61 | M45: 6.76 | N45: -0.4470111999 | P45: 2001 | AA45: 2002-09-03 | AB45: Sep-02 | AC45: 49.3025 | AD45: 3.549 | AE45: 13.94886518 | AF45: -0.1510712328 | AG45: 0.1392305638 | AH45: -0.2984387742 | AK45: 6.41 | AL45: 2001 | AX45: -3.191891196e-16 | AY45: 682 | AZ45: 0.2599085366 | BA45: 0.5 | BB45: 0.148375984 | BG45: -4 | BH45: 0 | BI45: 0 | BJ45: 6.691511288e-05
A46: 2001-02-06 | B46: Feb-01 | C46: 51.62 | D46: =MATCH(A46,'Natural Gas'!A:A) -> 1028 | E46: =INDEX('Natural Gas'!B:B,'Price Data'!D46) -> 5.59 | F46: 9.234347048 | G46: 0.003104387437 | H46: -0.09547279465 | I46: 0.09857718209 | J46: 0.16 | K46: 51.46 | L46: -0.56 | M46: 6.15 | N46: -0.4404425756 | P46: 2001 | AA46: 2002-10-03 | AB46: Oct-02 | AC46: 48.23380952 | AD46: 4.124761905 | AE46: 11.71170405 | AF46: -0.02191457214 | AG46: 0.1503424244 | AH46: -0.1748094676 | AK46: 10.49 | AL46: 2001 | AX46: -0.05 | AY46: 359 | AZ46: 0.1368140244 | BA46: 0.351624016 | BB46: 0.148375984 | BG46: -4.5 | BH46: 0 | BI46: 0 | BJ46: 7.991870553e-06
A47: 2001-02-07 | B47: Feb-01 | C47: 50.69 | D47: =MATCH(A47,'Natural Gas'!A:A) -> 1029 | E47: =INDEX('Natural Gas'!B:B,'Price Data'!D47) -> 5.67 | F47: 8.940035273 | G47: -0.01818054181 | H47: 0.01420983057 | I47: -0.03239037238 | J47: -0.93 | K47: 51.62 | L47: 0.08 | M47: 5.59 | N47: -0.4786227039 | P47: 2001 | AA47: 2002-11-03 | AB47: Nov-02 | AC47: 46.62666667 | AD47: 4.035 | AE47: 11.58098795 | AF47: -0.03388759404 | AG47: -0.02200199634 | AH47: -0.01122390479 | AK47: 9 | AL47: 2001 | AX47: -0.1 | AY47: 143 | AZ47: 0.05449695122 | BA47: 0.2230660242 | BB47: 0.1285579918 | BG47: -5 | BH47: 0 | BI47: 0 | BJ47: 7.433597574e-07
A48: 2001-02-08 | B48: Feb-01 | C48: 48.75 | D48: =MATCH(A48,'Natural Gas'!A:A) -> 1030 | E48: =INDEX('Natural Gas'!B:B,'Price Data'!D48) -> 6.24 | F48: 7.8125 | G48: -0.03902345504 | H48: 0.09579106464 | I48: -0.1348145197 | J48: -1.94 | K48: 50.69 | L48: 0.57 | M48: 5.67 | N48: -0.5582672726 | P48: 2001 | AA48: 2002-12-03 | AB48: Dec-02 | AC48: 52.58277778 | AD48: 4.731111111 | AE48: 11.18648044 | AF48: 0.1202160239 | AG48: 0.1591537804 | AH48: -0.03465883792 | AK48: 3.07 | AL48: 2001 | AX48: -0.15 | AY48: 65 | AZ48: 0.02477134146 | BA48: 0.1265568861 | BB48: 0.0965091381 | BG48: -5.5 | BH48: 0 | BI48: 0 | BJ48: 5.384880021e-08
A49: 2001-02-09 | B49: Feb-01 | C49: 54.67 | D49: =MATCH(A49,'Natural Gas'!A:A) -> 1031 | E49: =INDEX('Natural Gas'!B:B,'Price Data'!D49) -> 6.24 | F49: 8.761217949 | G49: 0.1146099155 | H49: 0 | I49: 0.1146099155 | J49: 5.92 | K49: 48.75 | L49: 0 | M49: 6.24 | N49: -0.3152281764 | P49: 2001 | AA49: 2003-01-03 | AB49: Jan-03 | AC49: 70.19190476 | AD49: 5.457619048 | AE49: 12.81657657 | AF49: 0.2888443401 | AG49: 0.1428525407 | AH49: 0.1360334323 | AK49: 8.99 | AL49: 2001 | AX49: -0.2 | AY49: 27 | AZ49: 0.01028963415 | BA49: 0.06378451362 | BB49: 0.06277237243 | BG49: -6 | BH49: 0 | BI49: 0 | BJ49: 3.037941425e-09
A50: 2001-02-12 | B50: Feb-01 | C50: 49.5 | D50: =MATCH(A50,'Natural Gas'!A:A) -> 1032 | E50: =INDEX('Natural Gas'!B:B,'Price Data'!D50) -> 5.74 | F50: 8.62369338 | G50: -0.09934244333 | H50: -0.08352097205 | I50: -0.01582147128 | J50: -5.17 | K50: 54.67 | L50: -0.5 | M50: 6.24 | N50: -0.5274768466 | P50: 2001 | AA50: 2003-02-03 | AB50: Feb-03 | AC50: 82.22526316 | AD50: 7.448421053 | AE50: 11.50797878 | AF50: 0.1582296049 | AG50: 0.3109894479 | AH50: -0.1076987759 | AK50: 7.32 | AL50: 2001 | AX50: -0.25 | AY50: 25 | AZ50: 0.009527439024 | BA50: 0.02840965406 | BB50: 0.03537485956
A51: 2001-02-13 | B51: Feb-01 | C51: 47.25 | D51: =MATCH(A51,'Natural Gas'!A:A) -> 1033 | E51: =INDEX('Natural Gas'!B:B,'Price Data'!D51) -> 5.58 | F51: 8.467741935 | G51: -0.04652001563 | H51: -0.02827043394 | I51: -0.0182495817 | J51: -2.25 | K51: 49.5 | L51: -0.16 | M51: 5.74 | N51: -0.6198481247 | P51: 2001 | AA51: 2003-03-03 | AB51: Mar-03 | AC51: 73.90421053 | AD51: 5.900526316 | AE51: 12.23374061 | AF51: -0.1066927902 | AG51: -0.2329605177 | AH51: 0.06115715636 | AK51: 6.19 | AL51: 2001 | AX51: -0.3 | AY51: 13 | AZ51: 0.004954268293 | BA51: 0.01113772591 | BB51: 0.01727192815 | BJ51: =SUM(BJ25:BJ49) -> 0.9999999997
A52: 2001-02-14 | B52: Feb-01 | C52: 47.69 | D52: =MATCH(A52,'Natural Gas'!A:A) -> 1034 | E52: =INDEX('Natural Gas'!B:B,'Price Data'!D52) -> 5.89 | F52: 8.096774194 | G52: 0.00926907837 | H52: 0.05406722127 | I52: -0.0447981429 | J52: 0.44 | K52: 47.25 | L52: 0.31 | M52: 5.58 | N52: -0.6017844081 | P52: 2001 | AA52: 2003-04-03 | AB52: Apr-03 | AC52: 53.485 | AD52: 5.214 | AE52: 10.28288397 | AF52: -0.3233685616 | AG52: -0.1236942375 | AH52: -0.1737169956 | AK52: 4.46 | AL52: 2001 | AX52: -0.35 | AY52: 13 | AZ52: 0.004954268293 | BA52: 0.003831396445 | BB52: 0.007306329465
A53: 2001-02-15 | B53: Feb-01 | C53: 47.75 | D53: =MATCH(A53,'Natural Gas'!A:A) -> 1035 | E53: =INDEX('Natural Gas'!B:B,'Price Data'!D53) -> 5.35 | F53: 8.925233645 | G53: 0.001257334617 | H53: -0.09615943676 | I53: 0.09741677137 | J53: 0.06 | K53: 47.69 | L53: -0.54 | M53: 5.89 | N53: -0.599321174 | P53: 2001 | AA53: 2003-05-03 | AB53: May-03 | AC53: 53.38 | AD53: 5.802857143 | AE53: 9.221704548 | AF53: -0.001965096782 | AG53: 0.1070030916 | AH53: -0.1089208673 | AK53: 8.3 | AL53: 2001 | AX53: -0.4 | AY53: 7 | AZ53: 0.002667682927 | BA53: 0.001153701674 | BB53: 0.002677694771
A54: 2001-02-16 | B54: Feb-01 | C54: 51.25 | D54: =MATCH(A54,'Natural Gas'!A:A) -> 1036 | E54: =INDEX('Natural Gas'!B:B,'Price Data'!D54) -> 5.57 | F54: 9.201077199 | G54: 0.07073655109 | H54: 0.04029849303 | I54: 0.03043805806 | J54: 3.5 | K54: 47.75 | L54: 0.22 | M54: 5.35 | N54: -0.4556325192 | P54: 2001 | AA54: 2003-06-03 | AB54: Jun-03 | AC54: 58.08818182 | AD54: 5.911818182 | AE54: 9.867445484 | AF54: 0.08452608814 | AG54: 0.01860302199 | AH54: 0.06768110827 | AK54: 10.26 | AL54: 2001 | AX54: -0.45 | AY54: 6 | AZ54: 0.002286585366 | BA54: 0.0003035115348 | BB54: 0.0008501901392
A55: 2001-02-19 | B55: Feb-01 | C55: 46.92 | D55: =MATCH(A55,'Natural Gas'!A:A) -> 1036 | E55: =INDEX('Natural Gas'!B:B,'Price Data'!D55) -> 5.57 | F55: 8.423698384 | G55: -0.08827159423 | H55: 0 | I55: -0.08827159423 | J55: -4.33 | K55: 51.25 | L55: 0 | M55: 5.57 | N55: -0.6333959122 | P55: 2001 | AA55: 2003-07-03 | AB55: Jul-03 | AC55: 55.53090909 | AD55: 5.091818182 | AE55: 10.92176683 | AF55: -0.04502244583 | AG55: -0.1493184557 | AH55: 0.1015167513 | AK55: 5.93 | AL55: 2001 | AX55: -0.5 | AY55: 1 | AZ55: 0.000381097561 | BA55: 6.965320941e-05 | BB55: 0.0002338583254
A56: 2001-02-21 | B56: Feb-01 | C56: 52.38 | D56: =MATCH(A56,'Natural Gas'!A:A) -> 1038 | E56: =INDEX('Natural Gas'!B:B,'Price Data'!D56) -> 5.2 | F56: 10.07307692 | G56: 0.1100808153 | H56: -0.06873642835 | I56: 0.1788172436 | J56: 5.46 | K56: 46.92 | L56: -0.37 | M56: 5.57 | N56: -0.4092416106 | P56: 2001 | AA56: 2003-08-03 | AB56: Aug-03 | AC56: 52.65222222 | AD56: 5.044444444 | AE56: 10.45268243 | AF56: -0.05323134115 | AG56: -0.009347445712 | AH56: -0.04389911754 | AK56: 13.98 | AL56: 2001 | AX56: -0.55 | AY56: 2 | AZ56: 0.000762195122 | BA56: 1.392707626e-05 | BB56: 5.572613315e-05
A57: 2001-02-22 | B57: Feb-01 | C57: 46.88 | D57: =MATCH(A57,'Natural Gas'!A:A) -> 1039 | E57: =INDEX('Natural Gas'!B:B,'Price Data'!D57) -> 5.11 | F57: 9.174168297 | G57: -0.1109336938 | H57: -0.01745922137 | I57: -0.09347447244 | J57: -5.5 | K57: 52.38 | L57: -0.09 | M57: 5.2 | N57: -0.6350380682 | P57: 2001 | AA57: 2003-09-03 | AB57: Sep-03 | AC57: =AVERAGEIF(B:B,AB57,C:C) -> 47.03176471 | AD57: =AVERAGEIF(B:B,AB57,E:E) -> 4.595882353 | AE57: =AVERAGEIF(B:B,AB57,F:F) -> 10.24427554 | AF57: -0.1128852269 | AG57: -0.09312676576 | AH57: -0.02013957213 | AK57: 9.11 | AL57: 2001 | AX57: -0.6 | AY57: 2 | AZ57: 0.000762195122 | BA57: 2.423819137e-06 | BB57: 1.150325712e-05
A58: 2001-02-23 | B58: Feb-01 | C58: 47 | D58: =MATCH(A58,'Natural Gas'!A:A) -> 1040 | E58: =INDEX('Natural Gas'!B:B,'Price Data'!D58) -> 5.05 | F58: 9.306930693 | G58: 0.002556456441 | H58: -0.01181116093 | I58: 0.01436761737 | J58: 0.12 | K58: 46.88 | L58: -0.06 | M58: 5.11 | N58: -0.6301116001 | P58: 2001 | AA58: 2003-10-03 | AB58: Oct-03 | AC58: 50.64583333 | AD58: 4.7325 | AE58: 10.70729531 | AF58: 0.07403374517 | AG58: 0.02929284215 | AH58: 0.04420624872 | AK58: 9.65 | AL58: 2001 | AX58: -0.65 | AY58: 3 | AZ58: 0.001143292683 | BA58: 3.668667337e-07 | BB58: 2.056952404e-06
A59: 2001-02-26 | B59: Feb-01 | C59: 47.58 | D59: =MATCH(A59,'Natural Gas'!A:A) -> 1041 | E59: =INDEX('Natural Gas'!B:B,'Price Data'!D59) -> 5.07 | F59: 9.384615385 | G59: 0.01226490316 | H59: 0.003952574316 | I59: 0.008312328849 | J59: 0.58 | K59: 47 | L59: 0.02 | M59: 5.05 | N59: -0.6063003373 | P59: 2001 | AA59: 2003-11-03 | AB59: Nov-03 | AC59: 48.17285714 | AD59: 4.440714286 | AE59: 10.86734185 | AF59: -0.05006123079 | AG59: -0.06363836544 | AH59: 0.01483681669 | AK59: 10.09 | AL59: 2001 | AX59: -0.7 | AY59: 2 | AZ59: 0.000762195122 | BA59: 4.826040892e-08 | BB59: 3.186063247e-07
A60: 2001-02-27 | B60: Feb-01 | C60: 50.25 | D60: =MATCH(A60,'Natural Gas'!A:A) -> 1042 | E60: =INDEX('Natural Gas'!B:B,'Price Data'!D60) -> 5.07 | F60: 9.911242604 | G60: 0.05459804206 | H60: 0 | I60: 0.05459804206 | J60: 2.67 | K60: 47.58 | L60: 0 | M60: 5.07 | N60: -0.4966864205 | P60: 2001 | AA60: 2003-12-03 | AB60: Dec-03 | AC60: 59.51058824 | AD60: 6.144117647 | AE60: 9.72603922 | AF60: 0.2113585176 | AG60: 0.3246799053 | AH60: -0.1109553863 | AK60: 12.76 | AL60: 2001 | AX60: -0.75 | AY60: 0 | AZ60: 0 | BA60: 5.514478053e-09 | BB60: 4.274593086e-08
A61: 2001-02-28 | B61: Feb-01 | C61: 51.75 | D61: =MATCH(A61,'Natural Gas'!A:A) -> 1043 | E61: =INDEX('Natural Gas'!B:B,'Price Data'!D61) -> 5.25 | F61: 9.857142857 | G61: 0.02941388521 | H61: 0.034887259 | I61: -0.005473373794 | J61: 1.5 | K61: 50.25 | L61: 0.18 | M61: 5.07 | N61: -0.4351055685 | P61: 2001 | AA61: =EDATE(AA60,1) -> 2004-01-03 | AB61: Jan-04 | AC61: 101.7461111 | AD61: 6.092777778 | AE61: 16.91067844 | AF61: 0.5363263533 | AG61: -0.00839104507 | AH61: 0.5531385385 | AK61: 13 | AL61: 2001 | AX61: -0.8 | AY61: 0 | AZ61: 0 | BA61: 5.470697275e-10 | BB61: 4.967408326e-09
A62: 2001-03-01 | B62: Mar-01 | C62: 48.88 | D62: =MATCH(A62,'Natural Gas'!A:A) -> 1044 | E62: =INDEX('Natural Gas'!B:B,'Price Data'!D62) -> 5.25 | F62: 9.31047619 | G62: -0.05705611728 | H62: 0 | I62: -0.05705611728 | J62: -2.87 | K62: 51.75 | L62: 0 | M62: 5.25 | N62: -0.5529302655 | P62: 2001 | AA62: 2004-02-03 | AB62: Feb-04 | AC62: 57.14266667 | AD62: 5.422 | AE62: 10.53060036 | AF62: -0.5769295388 | AG62: -0.1166393478 | AH62: -0.4736599439 | AK62: 10.13 | AL62: 2001 | AX62: -0.85 | AY62: 2 | AZ62: 0.000762195122 | BA62: 4.710113117e-11 | BB62: 4.999685964e-10
A63: 2001-03-02 | B63: Mar-01 | C63: 50.35 | D63: =MATCH(A63,'Natural Gas'!A:A) -> 1045 | E63: =INDEX('Natural Gas'!B:B,'Price Data'!D63) -> 5.06 | F63: 9.950592885 | G63: 0.0296303043 | H63: -0.0368615933 | I63: 0.06649189761 | J63: 1.47 | K63: 48.88 | L63: -0.19 | M63: 5.25 | N63: -0.4925810304 | P63: 2001 | AA63: 2004-03-03 | AB63: Mar-04 | AC63: 52.99542174 | AD63: 5.386956522 | AE63: 9.835006141 | AF63: -0.07534553717 | AG63: -0.006484178371 | AH63: -0.06833726277 | AK63: 12.93 | AL63: 2001 | AX63: -0.9 | AY63: 0 | AZ63: 0 | BA63: 3.518206423e-12 | BB63: 4.358292474e-11
A64: 2001-03-05 | B64: Mar-01 | C64: 53.5 | D64: =MATCH(A64,'Natural Gas'!A:A) -> 1046 | E64: =INDEX('Natural Gas'!B:B,'Price Data'!D64) -> 5.32 | F64: 10.05639098 | G64: 0.06068303474 | H64: 0.05010682005 | I64: 0.01057621468 | J64: 3.15 | K64: 50.35 | L64: 0.26 | M64: 5.06 | N64: -0.363261241 | P64: 2001 | AA64: 2004-04-03 | AB64: Apr-04 | AC64: 57.26448421 | AD64: 5.709473684 | AE64: 10.02811568 | AF64: 0.07747508221 | AG64: 0.05814627232 | AH64: 0.01944463933 | AK64: 14.26 | AL64: 2001 | AX64: -0.95 | AY64: 0 | AZ64: 0 | BA64: 2.27921043e-13 | BB64: 3.29028538e-12
A65: 2001-03-06 | B65: Mar-01 | C65: 58 | D65: =MATCH(A65,'Natural Gas'!A:A) -> 1047 | E65: =INDEX('Natural Gas'!B:B,'Price Data'!D65) -> 5.27 | F65: 11.0056926 | G65: 0.08076135664 | H65: -0.0094429408 | I65: 0.09020429744 | J65: 4.5 | K65: 53.5 | L65: -0.05 | M65: 5.32 | N65: -0.1785186848 | P65: 2001 | AA65: 2004-05-03 | AB65: May-04 | AC65: 63.67426471 | AD65: 6.3 | AE65: 10.11109259 | AF65: 0.1060998634 | AG65: 0.09842278837 | AH65: 0.008240381757 | AK65: 19.11 | AL65: 2001 | AX65: -1 | AY65: 0 | AZ65: 0 | BA65: 1.280293978e-14 | BB65: 2.151181032e-13
A66: 2001-03-07 | B66: Mar-01 | C66: 57.17 | D66: =MATCH(A66,'Natural Gas'!A:A) -> 1048 | E66: =INDEX('Natural Gas'!B:B,'Price Data'!D66) -> 5.22 | F66: 10.95210728 | G66: -0.01441372527 | H66: -0.009532960659 | I66: -0.004880764612 | J66: -0.83 | K66: 58 | L66: -0.05 | M66: 5.27 | N66: -0.2125934229 | P66: 2001 | AA66: 2004-06-03 | AB66: Jun-04 | AC66: 62.57098571 | AD66: 6.252380952 | AE66: 10.01629698 | AF66: -0.01747878952 | AG66: -0.007587289812 | AH66: -0.009419632863 | AK66: 18.63 | AL66: 2001 | AX66: -1.05 | AY66: 1 | AZ66: 0.000381097561 | BA66: 6.234484733e-16 | BB66: 1.217949131e-14
A67: 2001-03-08 | B67: Mar-01 | C67: 53 | D67: =MATCH(A67,'Natural Gas'!A:A) -> 1049 | E67: =INDEX('Natural Gas'!B:B,'Price Data'!D67) -> 5.25 | F67: 10.0952381 | G67: -0.07573737172 | H67: 0.005730674709 | I67: -0.08146804643 | J67: -4.17 | K67: 57.17 | L67: 0.03 | M67: 5.22 | N67: -0.3837881917 | P67: 2001 | AA67: 2004-07-03 | AB67: Jul-04 | AC67: 58.419445 | AD67: 5.9145 | AE67: 9.88023377 | AF67: -0.06865288693 | AG67: -0.05555538058 | AH67: -0.01367729207 | AK67: 14.25 | AL67: 2001 | AX67: -1.1 | AY67: 0 | AZ67: 0 | BA67: 2.631312746e-17 | BB67: 5.971353458e-16
A68: 2001-03-12 | B68: Mar-01 | C68: 53.5 | D68: =MATCH(A68,'Natural Gas'!A:A) -> 1051 | E68: =INDEX('Natural Gas'!B:B,'Price Data'!D68) -> 4.98 | F68: 10.74297189 | G68: 0.00938974035 | H68: -0.05279818557 | I68: 0.06218792592 | J68: 0.5 | K68: 53 | L68: -0.27 | M68: 5.25 | N68: -0.363261241 | P68: 2001 | AA68: 2004-08-03 | AB68: Aug-04 | AC68: 53.36532353 | AD68: 5.351764706 | AE68: 9.977427522 | AF68: -0.09048763382 | AG68: -0.09998060492 | AH68: 0.009789121332 | AK68: 16.64 | AL68: 2001
A69: 2001-03-13 | B69: Mar-01 | C69: 58.38 | D69: =MATCH(A69,'Natural Gas'!A:A) -> 1052 | E69: =INDEX('Natural Gas'!B:B,'Price Data'!D69) -> 5.08 | F69: 11.49212598 | G69: 0.08729171152 | H69: 0.01988137055 | I69: 0.06741034097 | J69: 4.88 | K69: 53.5 | L69: 0.1 | M69: 4.98 | N69: -0.1629182022 | P69: 2001 | AA69: 2004-09-03 | AB69: Sep-04 | AC69: 50.71821429 | AD69: 5.145238095 | AE69: 9.901577095 | AF69: -0.05087606072 | AG69: -0.03935471286 | AH69: -0.007631246755 | AK69: 20.82 | AL69: 2001
A70: 2001-03-15 | B70: Mar-01 | C70: 54.42 | D70: =MATCH(A70,'Natural Gas'!A:A) -> 1054 | E70: =INDEX('Natural Gas'!B:B,'Price Data'!D70) -> 5.27 | F70: 10.32637571 | G70: -0.07024163207 | H70: 0.03671910096 | I70: -0.106960733 | J70: -3.96 | K70: 58.38 | L70: 0.19 | M70: 5.08 | N70: -0.3254916517 | P70: 2001 | AA70: 2004-10-03 | AB70: Oct-04 | AC70: 57.848935 | AD70: 6.3915 | AE70: 9.064462673 | AF70: 0.1315499416 | AG70: 0.2168973374 | AH70: -0.08833247949 | AK70: 15.53 | AL70: 2001 | AY70: =SUM(AY25:AY69) -> 2624
A71: 2001-03-16 | B71: Mar-01 | C71: 50.73 | D71: =MATCH(A71,'Natural Gas'!A:A) -> 1055 | E71: =INDEX('Natural Gas'!B:B,'Price Data'!D71) -> 5.27 | F71: 9.626185958 | G71: -0.07021428178 | H71: 0 | I71: -0.07021428178 | J71: -3.69 | K71: 54.42 | L71: 0 | M71: 5.27 | N71: -0.4769805479 | P71: 2001 | AA71: 2004-11-03 | AB71: Nov-04 | AC71: 58.682955 | AD71: 6.165 | AE71: 9.574656761 | AF71: 0.01431426609 | AG71: -0.03608084601 | AH71: 0.05475811952 | AK71: 11.84 | AL71: 2001
A72: 2001-03-19 | B72: Mar-01 | C72: 48.85 | D72: =MATCH(A72,'Natural Gas'!A:A) -> 1056 | E72: =INDEX('Natural Gas'!B:B,'Price Data'!D72) -> 5.27 | F72: 9.269449715 | G72: -0.03776307309 | H72: 0 | I72: -0.03776307309 | J72: -1.88 | K72: 50.73 | L72: 0 | M72: 5.27 | N72: -0.5541618825 | P72: 2001 | AA72: 2004-12-03 | AB72: Dec-04 | AC72: 66.36385 | AD72: 6.557222222 | AE72: 10.11895865 | AF72: 0.1230031706 | AG72: 0.06167893493 | AH72: 0.05529107086 | AK72: 9.96 | AL72: 2001
A73: 2001-03-20 | B73: Mar-01 | C73: 54.46 | D73: =MATCH(A73,'Natural Gas'!A:A) -> 1057 | E73: =INDEX('Natural Gas'!B:B,'Price Data'!D73) -> 5.27 | F73: 10.33396584 | G73: 0.1087121088 | H73: 0 | I73: 0.1087121088 | J73: 5.61 | K73: 48.85 | L73: 0 | M73: 5.27 | N73: -0.3238494957 | P73: 2001 | AA73: 2005-01-03 | AB73: Jan-05 | AC73: 82.84528571 | AD73: 6.164285714 | AE73: 13.29981576 | AF73: 0.2218223603 | AG73: -0.06179480307 | AH73: 0.2733394249 | AK73: 15.57 | AL73: 2001
A74: 2001-03-21 | B74: Mar-01 | C74: 52.59 | D74: =MATCH(A74,'Natural Gas'!A:A) -> 1058 | E74: =INDEX('Natural Gas'!B:B,'Price Data'!D74) -> 5.16 | F74: 10.19186047 | G74: -0.03494049964 | H74: -0.02109378306 | I74: -0.01384671658 | J74: -1.87 | K74: 54.46 | L74: -0.11 | M74: 5.27 | N74: -0.4006202913 | P74: 2001 | AA74: 2005-02-03 | AB74: Feb-05 | AC74: 62.58734375 | AD74: 6.159375 | AE74: 10.15594129 | AF74: -0.2804117596 | AG74: -0.0007969571152 | AH74: -0.2696913 | AK74: 14.47 | AL74: 2001
A75: 2001-03-22 | B75: Mar-01 | C75: 49.52 | D75: =MATCH(A75,'Natural Gas'!A:A) -> 1059 | E75: =INDEX('Natural Gas'!B:B,'Price Data'!D75) -> 5.16 | F75: 9.596899225 | G75: -0.06014935922 | H75: 0 | I75: -0.06014935922 | J75: -3.07 | K75: 52.59 | L75: 0 | M75: 5.16 | N75: -0.5266557686 | P75: 2001 | AA75: 2005-03-03 | AB75: Mar-05 | AC75: 67.54945714 | AD75: 6.952380952 | AE75: 9.722917885 | AF75: 0.07629694685 | AG75: 0.1211088726 | AH75: -0.04357311542 | AK75: 11.4 | AL75: 2001
A76: 2001-03-23 | B76: Mar-01 | C76: 53 | D76: =MATCH(A76,'Natural Gas'!A:A) -> 1060 | E76: =INDEX('Natural Gas'!B:B,'Price Data'!D76) -> 5.16 | F76: 10.27131783 | G76: 0.06791528518 | H76: 0 | I76: 0.06791528518 | J76: 3.48 | K76: 49.52 | L76: 0 | M76: 5.16 | N76: -0.3837881917 | P76: 2001 | AA76: 2005-04-03 | AB76: Apr-05 | AC76: 70.58298333 | AD76: 7.171666667 | AE76: 9.852585802 | AF76: 0.04392905818 | AG76: 0.03105389364 | AH76: 0.0132481713 | AK76: 14.88 | AL76: 2001
A77: 2001-03-26 | B77: Mar-01 | C77: 56.25 | D77: =MATCH(A77,'Natural Gas'!A:A) -> 1061 | E77: =INDEX('Natural Gas'!B:B,'Price Data'!D77) -> 5.23 | F77: 10.75525813 | G77: 0.05951412753 | H77: 0.01347469858 | I77: 0.04603942895 | J77: 3.25 | K77: 53 | L77: 0.07 | M77: 5.16 | N77: -0.2503630122 | P77: 2001 | AA77: 2005-05-03 | AB77: May-05 | AC77: 64.43508947 | AD77: 6.477894737 | AE77: 9.946145164 | AF77: -0.09113073385 | AG77: -0.1017425063 | AH77: 0.009451116722 | AK77: 17.64 | AL77: 2001
A78: 2001-03-27 | B78: Mar-01 | C78: 52.58 | D78: =MATCH(A78,'Natural Gas'!A:A) -> 1062 | E78: =INDEX('Natural Gas'!B:B,'Price Data'!D78) -> 5.47 | F78: 9.612431444 | G78: -0.06747022178 | H78: 0.04486733836 | I78: -0.1123375601 | J78: -3.67 | K78: 56.25 | L78: 0.24 | M78: 5.23 | N78: -0.4010308303 | P78: 2001 | AA78: 2005-06-03 | AB78: Jun-05 | AC78: 79.165555 | AD78: 7.175 | AE78: 11.03160733 | AF78: 0.2058829403 | AG78: 0.1022071904 | AH78: 0.1035794906 | AK78: 12.29 | AL78: 2001
A79: 2001-03-28 | B79: Mar-01 | C79: 51.5 | D79: =MATCH(A79,'Natural Gas'!A:A) -> 1063 | E79: =INDEX('Natural Gas'!B:B,'Price Data'!D79) -> 5.6 | F79: 9.196428571 | G79: -0.02075401163 | H79: 0.02348798131 | I79: -0.04424199294 | J79: -1.08 | K79: 52.58 | L79: 0.13 | M79: 5.47 | N79: -0.4453690438 | P79: 2001 | AA79: 2005-07-03 | AB79: Jul-05 | AC79: 92.41884444 | AD79: 7.611111111 | AE79: 12.14587513 | AF79: 0.1547896095 | AG79: 0.05900640629 | AH79: 0.09622507047 | AK79: 10.3 | AL79: 2001
A80: 2001-03-29 | B80: Mar-01 | C80: 60 | D80: =MATCH(A80,'Natural Gas'!A:A) -> 1064 | E80: =INDEX('Natural Gas'!B:B,'Price Data'!D80) -> 5.31 | F80: 11.29943503 | G80: 0.1527627546 | H80: -0.05317476249 | I80: 0.205937517 | J80: 8.5 | K80: 51.5 | L80: -0.29 | M80: 5.6 | N80: -0.09641088197 | P80: 2001 | AA80: 2005-08-03 | AB80: Aug-05 | AC80: 107.8859125 | AD80: 9.565625 | AE80: 11.35417481 | AF80: 0.154743401 | AG80: 0.2285667752 | AH80: -0.06740411579 | AK80: 20.83 | AL80: 2001
A81: 2001-03-30 | B81: Mar-01 | C81: 61 | D81: =MATCH(A81,'Natural Gas'!A:A) -> 1065 | E81: =INDEX('Natural Gas'!B:B,'Price Data'!D81) -> 5.35 | F81: 11.40186916 | G81: 0.01652930195 | H81: 0.007504725654 | I81: 0.009024576297 | J81: 1 | K81: 60 | L81: 0.04 | M81: 5.31 | N81: -0.05535698058 | P81: 2001 | AA81: 2005-09-03 | AB81: Sep-05 | AC81: 120.91995 | AD81: 12.23571429 | AE81: 9.984413577 | AF81: 0.1140544534 | AG81: 0.2461831326 | AH81: -0.1285602659 | AK81: 21.55 | AL81: 2001
A82: 2001-04-03 | B82: Apr-01 | C82: 53 | D82: =MATCH(A82,'Natural Gas'!A:A) -> 1067 | E82: =INDEX('Natural Gas'!B:B,'Price Data'!D82) -> 5.25 | F82: 10.0952381 | G82: -0.1405819506 | H82: -0.0188684843 | I82: -0.1217134663 | J82: -8 | K82: 61 | L82: -0.1 | M82: 5.35 | N82: -0.3837881917 | P82: 2001 | AA82: 2005-10-03 | AB82: Oct-05 | AC82: 128.6963929 | AD82: 13.84428571 | AE82: 9.298787487 | AF82: 0.06232733027 | AG82: 0.123513488 | AH82: -0.07114122087 | AK82: 14.25 | AL82: 2001
A83: 2001-04-04 | B83: Apr-01 | C83: 50.58 | D83: =MATCH(A83,'Natural Gas'!A:A) -> 1068 | E83: =INDEX('Natural Gas'!B:B,'Price Data'!D83) -> 5.24 | F83: 9.652671756 | G83: -0.04673567231 | H83: -0.001906578271 | I83: -0.04482909404 | J83: -2.42 | K83: 53 | L83: -0.01 | M83: 5.25 | N83: -0.4831386331 | P83: 2001 | AA83: 2005-11-03 | AB83: Nov-05 | AC83: 90.45811765 | AD83: 10.22764706 | AE83: 8.86449904 | AF83: -0.3525691315 | AG83: -0.3027780142 | AH83: -0.04782958585 | AK83: 11.9 | AL83: 2001
A84: 2001-04-05 | B84: Apr-01 | C84: 48.25 | D84: =MATCH(A84,'Natural Gas'!A:A) -> 1069 | E84: =INDEX('Natural Gas'!B:B,'Price Data'!D84) -> 5.27 | F84: 9.155597723 | G84: -0.04716041346 | H84: 0.00570886422 | I84: -0.05286927768 | J84: -2.33 | K84: 50.58 | L84: 0.03 | M84: 5.24 | N84: -0.5787942233 | P84: 2001 | AA84: 2005-12-03 | AB84: Dec-05 | AC84: 115.5245571 | AD84: 13.36571429 | AE84: 8.640507902 | AF84: 0.2445961682 | AG84: 0.2675982432 | AH84: -0.02559306201 | AK84: 9.36 | AL84: 2001
A85: 2001-04-09 | B85: Apr-01 | C85: 49.75 | D85: =MATCH(A85,'Natural Gas'!A:A) -> 1071 | E85: =INDEX('Natural Gas'!B:B,'Price Data'!D85) -> 5.45 | F85: 9.128440367 | G85: 0.03061463582 | H85: 0.03358524612 | I85: -0.002970610302 | J85: 1.5 | K85: 48.25 | L85: 0.18 | M85: 5.27 | N85: -0.5172133712 | P85: 2001 | AA85: 2006-01-03 | AB85: Jan-06 | AC85: 80.6810625 | AD85: 8.6275 | AE85: 9.354233806 | AF85: -0.358979241 | AG85: -0.4377380167 | AH85: 0.07936768828 | AK85: 9.6 | AL85: 2001
A86: 2001-04-10 | B86: Apr-01 | C86: 48.94 | D86: =MATCH(A86,'Natural Gas'!A:A) -> 1072 | E86: =INDEX('Natural Gas'!B:B,'Price Data'!D86) -> 5.55 | F86: 8.818018018 | G86: -0.01641540559 | H86: 0.01818231908 | I86: -0.03459772467 | J86: -0.81 | K86: 49.75 | L86: 0.1 | M86: 5.45 | N86: -0.5504670314 | P86: 2001 | AA86: 2006-02-03 | AB86: Feb-06 | AC86: 75.9732375 | AD86: 7.590625 | AE86: 10.04020947 | AF86: -0.0601227422 | AG86: -0.1280408428 | AH86: 0.07076892295 | AK86: 8.09 | AL86: 2001
A87: 2001-04-11 | B87: Apr-01 | C87: 48.5 | D87: =MATCH(A87,'Natural Gas'!A:A) -> 1073 | E87: =INDEX('Natural Gas'!B:B,'Price Data'!D87) -> 5.45 | F87: 8.899082569 | G87: -0.009031260071 | H87: -0.01818231908 | I87: 0.009151059012 | J87: -0.44 | K87: 48.94 | L87: -0.1 | M87: 5.55 | N87: -0.568530748 | P87: 2001 | AA87: 2006-03-03 | AB87: Mar-06 | AC87: 66.12154783 | AD87: 6.88826087 | AE87: 9.607693405 | AF87: -0.1388864581 | AG87: -0.09709529375 | AH87: -0.04403380335 | AK87: 8.35 | AL87: 2001
A88: 2001-04-13 | B88: Apr-01 | C88: 54.5 | D88: =MATCH(A88,'Natural Gas'!A:A) -> 1074 | E88: =INDEX('Natural Gas'!B:B,'Price Data'!D88) -> 5.32 | F88: 10.2443609 | G88: 0.1166369037 | H88: -0.02414230532 | I88: 0.140779209 | J88: 6 | K88: 48.5 | L88: -0.13 | M88: 5.45 | N88: -0.3222073396 | P88: 2001 | AA88: 2006-04-03 | AB88: Apr-06 | AC88: 68.04206111 | AD88: 7.158888889 | AE88: 9.510898371 | AF88: 0.02863137768 | AG88: 0.03853614636 | AH88: -0.01012583584 | AK88: 15.26 | AL88: 2001
A89: 2001-04-16 | B89: Apr-01 | C89: 53.62 | D89: =MATCH(A89,'Natural Gas'!A:A) -> 1075 | E89: =INDEX('Natural Gas'!B:B,'Price Data'!D89) -> 5.48 | F89: 9.784671533 | G89: -0.01627856886 | H89: 0.02963179761 | I89: -0.04591036647 | J89: -0.88 | K89: 54.5 | L89: 0.16 | M89: 5.32 | N89: -0.3583347729 | P89: 2001 | AA89: 2006-05-03 | AB89: May-06 | AC89: =AVERAGEIF(B:B,AB89,C:C) -> 64.85667647 | AD89: =AVERAGEIF(B:B,AB89,E:E) -> 6.283529412 | AE89: =AVERAGEIF(B:B,AB89,F:F) -> 10.31502214 | AF89: -0.04794620173 | AG89: -0.130422955 | AH89: 0.081162955 | AK89: 13.26 | AL89: 2001
A90: 2001-04-17 | B90: =TEXT(A90,"mmm-yy") -> Apr-01 | C90: 55.38 | D90: =MATCH(A90,'Natural Gas'!A:A) -> 1076 | E90: =INDEX('Natural Gas'!B:B,'Price Data'!D90) -> 5.36 | F90: =C90/E90 -> 10.33208955 | G90: 0.03229638494 | H90: -0.02214112588 | I90: 0.05443751081 | J90: 1.76 | K90: 53.62 | L90: -0.12 | M90: 5.48 | N90: -0.2860799064 | P90: 2001 | AA90: 2006-06-03 | AB90: =TEXT(AA90,"mmm-yy") -> Jun-06 | AC90: 69.19294762 | AD90: 6.215238095 | AE90: 11.09393182 | AF90: 0.06471908643 | AG90: -0.01092779685 | AH90: 0.07279698246 | AK90: =MAX((C90-E90*$D$5-$D$4),0) -> 15.86 | AL90: =YEAR(A90) -> 2001
A91: 2001-04-18 | B91: Apr-01 | C91: 52.25 | D91: =MATCH(A91,'Natural Gas'!A:A) -> 1077 | E91: =INDEX('Natural Gas'!B:B,'Price Data'!D91) -> 5.15 | F91: 10.14563107 | G91: =LN(C91/C90) -> -0.0581786269 | H91: =LN(E91/E90) -> -0.03996726041 | I91: =LN(F91/F90) -> -0.01821136649 | J91: =C91-C90 -> -3.13 | K91: =C90 -> 55.38 | L91: =E91-E90 -> -0.21 | M91: =E90 -> 5.36 | N91: =(C91-$N$21)/$N$22 -> -0.4145786178 | P91: =YEAR(A91) -> 2001 | AA91: =EDATE(AA90,1) -> 2006-07-03 | AB91: Jul-06 | AC91: 84.15210526 | AD91: 6.168421053 | AE91: 13.4376836 | AF91: =LN(AC91/AC90) -> 0.1957269939 | AG91: =LN(AD91/AD90) -> -0.007561136025 | AH91: =LN(AE91/AE90) -> 0.1916646934 | AK91: 14.2 | AL91: 2001
A92: 2001-04-19 | B92: Apr-01 | C92: 46.25 | D92: =MATCH(A92,'Natural Gas'!A:A) -> 1078 | E92: =INDEX('Natural Gas'!B:B,'Price Data'!D92) -> 5.06 | F92: 9.140316206 | G92: -0.1219784269 | H92: -0.01763023138 | I92: -0.1043481955 | J92: -6 | K92: 52.25 | L92: -0.09 | M92: 5.15 | N92: -0.6609020261 | P92: 2001 | AA92: 2006-08-03 | AB92: Aug-06 | AC92: 78.26173913 | AD92: 7.135217391 | AE92: 10.80721201 | AF92: -0.0725670993 | AG92: 0.1455998208 | AH92: -0.2178492787 | AK92: 8.83 | AL92: 2001
A93: 2001-04-20 | B93: Apr-01 | C93: 49.88 | D93: =MATCH(A93,'Natural Gas'!A:A) -> 1079 | E93: =INDEX('Natural Gas'!B:B,'Price Data'!D93) -> 5 | F93: 9.976 | G93: 0.07555865685 | H93: -0.01192857087 | I93: 0.08748722772 | J93: 3.63 | K93: 46.25 | L93: -0.06 | M93: 5.06 | N93: -0.5118763641 | P93: 2001 | AA93: 2006-09-03 | AB93: Sep-06 | AC93: 51.898 | AD93: 4.896 | AE93: 10.65567687 | AF93: -0.4107785852 | AG93: -0.3766241736 | AH93: -0.01412090101 | AK93: 12.88 | AL93: 2001
A94: 2001-04-23 | B94: Apr-01 | C94: 53.42 | D94: =MATCH(A94,'Natural Gas'!A:A) -> 1080 | E94: =INDEX('Natural Gas'!B:B,'Price Data'!D94) -> 5.09 | F94: 10.49508841 | G94: 0.06856508687 | H94: 0.01783991813 | I94: 0.05072516874 | J94: 3.54 | K94: 49.88 | L94: 0.09 | M94: 5 | N94: -0.3665455531 | P94: 2001 | AA94: 2006-10-03 | AB94: Oct-06 | AC94: 62.38380952 | AD94: 5.92952381 | AE94: 10.65275578 | AF94: 0.1840255252 | AG94: 0.1915253626 | AH94: -0.0002741720097 | AK94: 15.79 | AL94: 2001
A95: 2001-04-24 | B95: Apr-01 | C95: 51.67 | D95: =MATCH(A95,'Natural Gas'!A:A) -> 1081 | E95: =INDEX('Natural Gas'!B:B,'Price Data'!D95) -> 5.13 | F95: 10.07212476 | G95: -0.03330786538 | H95: 0.00782782862 | I95: -0.041135694 | J95: -1.75 | K95: 53.42 | L95: 0.04 | M95: 5.09 | N95: -0.4383898806 | P95: 2001 | AA95: 2006-11-03 | AB95: Nov-06 | AC95: 72.6045 | AD95: 7.4045 | AE95: 9.830879457 | AF95: 0.1517211244 | AG95: 0.2221440156 | AH95: -0.08029022049 | AK95: 13.76 | AL95: 2001
A96: 2001-04-25 | B96: Apr-01 | C96: 48 | D96: =MATCH(A96,'Natural Gas'!A:A) -> 1082 | E96: =INDEX('Natural Gas'!B:B,'Price Data'!D96) -> 4.98 | F96: 9.638554217 | G96: -0.07367633139 | H96: -0.02967576815 | I96: -0.04400056325 | J96: -3.67 | K96: 51.67 | L96: -0.15 | M96: 5.13 | N96: -0.5890576987 | P96: 2001 | AA96: 2006-12-03 | AB96: Dec-06 | AC96: 64.62473684 | AD96: 6.778421053 | AE96: 9.525418875 | AF96: -0.1164296426 | AG96: -0.08834373176 | AH96: -0.03156450036 | AK96: 11.14 | AL96: 2001
A97: 2001-04-27 | B97: Apr-01 | C97: 56.25 | D97: =MATCH(A97,'Natural Gas'!A:A) -> 1084 | E97: =INDEX('Natural Gas'!B:B,'Price Data'!D97) -> 4.83 | F97: 11.64596273 | G97: 0.1586050302 | H97: -0.03058342337 | I97: 0.1891884535 | J97: 8.25 | K97: 48 | L97: -0.15 | M97: 4.98 | N97: -0.2503630122 | P97: 2001 | AA97: 2007-01-03 | AB97: Jan-07 | AC97: 71.8376 | AD97: 6.4012 | AE97: 11.10482274 | AF97: 0.1058107551 | AG97: -0.05725871895 | AH97: 0.1534155982 | AK97: 20.44 | AL97: 2001
A98: 2001-05-01 | B98: May-01 | C98: 92.5 | D98: =MATCH(A98,'Natural Gas'!A:A) -> 1086 | E98: =INDEX('Natural Gas'!B:B,'Price Data'!D98) -> 4.55 | F98: 20.32967033 | G98: 0.4974026034 | H98: -0.0597192347 | I98: 0.5571218381 | J98: 36.25 | K98: 56.25 | L98: -0.28 | M98: 4.83 | N98: 1.237840913 | P98: 2001 | AA98: 2007-02-03 | AB98: Feb-07 | AC98: 89.2395 | AD98: 8.024 | AE98: 11.05910989 | AF98: 0.2169157508 | AG98: 0.2259515779 | AH98: -0.004124981662 | AK98: 58.65 | AL98: 2001
A99: 2001-05-02 | B99: May-01 | C99: 130 | D99: =MATCH(A99,'Natural Gas'!A:A) -> 1087 | E99: =INDEX('Natural Gas'!B:B,'Price Data'!D99) -> 4.54 | F99: 28.63436123 | G99: 0.3403258059 | H99: -0.00220022091 | I99: 0.3425260268 | J99: 37.5 | K99: 92.5 | L99: -0.01 | M99: 4.55 | N99: 2.777362215 | P99: 2001 | AA99: 2007-03-03 | AB99: Mar-07 | AC99: 77.27 | AD99: 7.107727273 | AE99: 10.84455803 | AF99: -0.1440179847 | AG99: -0.1212545102 | AH99: -0.0195911224 | AK99: 96.22 | AL99: 2001
A100: 2001-05-03 | B100: May-01 | C100: 95 | D100: =MATCH(A100,'Natural Gas'!A:A) -> 1088 | E100: =INDEX('Natural Gas'!B:B,'Price Data'!D100) -> 4.46 | F100: 21.30044843 | G100: -0.3136575589 | H100: -0.01777824602 | I100: -0.2958793128 | J100: -35 | K100: 130 | L100: -0.08 | M100: 4.54 | N100: 1.340475667 | P100: 2001 | AA100: 2007-04-03 | AB100: Apr-07 | AC100: 79.98285714 | AD100: 7.597142857 | AE100: 10.51941028 | AF100: 0.03450654405 | AG100: 0.06658969626 | AH100: -0.03044124218 | AK100: 61.78 | AL100: 2001
A101: 2001-05-04 | B101: May-01 | C101: 57.32 | D101: =MATCH(A101,'Natural Gas'!A:A) -> 1089 | E101: =INDEX('Natural Gas'!B:B,'Price Data'!D101) -> 4.5 | F101: 12.73777778 | G101: -0.5052272886 | H101: 0.008928630744 | I101: -0.5141559194 | J101: -37.68 | K101: 95 | L101: 0.04 | M101: 4.46 | N101: -0.2064353377 | P101: 2001 | AA101: 2007-05-03 | AB101: May-07 | AC101: 77.27409091 | AD101: 7.637272727 | AE101: 10.1183751 | AF101: -0.03445360241 | AG101: 0.005268329819 | AH101: -0.03886906026 | AK101: 23.82 | AL101: 2001
A102: 2001-05-07 | B102: May-01 | C102: 49 | D102: =MATCH(A102,'Natural Gas'!A:A) -> 1090 | E102: =INDEX('Natural Gas'!B:B,'Price Data'!D102) -> 4.33 | F102: 11.31639723 | G102: -0.1568293048 | H102: -0.03850985476 | I102: -0.1183194501 | J102: -8.32 | K102: 57.32 | L102: -0.17 | M102: 4.5 | N102: -0.5480037973 | P102: 2001 | AA102: 2007-06-03 | AB102: Jun-07 | AC102: 73.63714286 | AD102: 7.346190476 | AE102: 10.06062572 | AF102: -0.04820916677 | AG102: -0.03885869028 | AH102: -0.005723726071 | AK102: 16.69 | AL102: 2001
A103: 2001-05-08 | B103: May-01 | C103: 62 | D103: =MATCH(A103,'Natural Gas'!A:A) -> 1091 | E103: =INDEX('Natural Gas'!B:B,'Price Data'!D103) -> 4.22 | F103: 14.69194313 | G103: 0.2353140869 | H103: -0.02573241397 | I103: 0.2610465009 | J103: 13 | K103: 49 | L103: -0.11 | M103: 4.33 | N103: -0.01430307919 | P103: 2001 | AA103: 2007-07-03 | AB103: Jul-07 | AC103: 71.0352381 | AD103: 6.218571429 | AE103: 11.43197933 | AF103: -0.0359734917 | AG103: -0.1666416698 | AH103: 0.1277852702 | AK103: 30.46 | AL103: 2001
A104: 2001-05-09 | B104: May-01 | C104: 57.62 | D104: =MATCH(A104,'Natural Gas'!A:A) -> 1092 | E104: =INDEX('Natural Gas'!B:B,'Price Data'!D104) -> 4.15 | F104: 13.88433735 | G104: -0.07326465539 | H104: -0.01672679381 | I104: -0.05653786158 | J104: -4.38 | K104: 62 | L104: -0.07 | M104: 4.22 | N104: -0.1941191673 | P104: 2001 | AA104: 2007-08-03 | AB104: Aug-07 | AC104: 74.6973913 | AD104: 6.217826087 | AE104: 12.07030049 | AF104: 0.05026910411 | AG104: -0.0001198645532 | AH104: 0.05433329792 | AK104: 26.57 | AL104: 2001
A105: 2001-05-11 | B105: May-01 | C105: 54 | D105: =MATCH(A105,'Natural Gas'!A:A) -> 1094 | E105: =INDEX('Natural Gas'!B:B,'Price Data'!D105) -> 4.25 | F105: 12.70588235 | G105: -0.06488568309 | H105: 0.02381064869 | I105: -0.08869633179 | J105: -3.62 | K105: 57.62 | L105: 0.1 | M105: 4.15 | N105: -0.3427342903 | P105: 2001 | AA105: 2007-09-03 | AB105: Sep-07 | AC105: 68.55052632 | AD105: 6.079473684 | AE105: 11.30168414 | AF105: -0.08587408541 | AG105: -0.02250221482 | AH105: -0.06579617696 | AK105: 22.25 | AL105: 2001
A106: 2001-05-14 | B106: May-01 | C106: 47.92 | D106: =MATCH(A106,'Natural Gas'!A:A) -> 1095 | E106: =INDEX('Natural Gas'!B:B,'Price Data'!D106) -> 4.28 | F106: 11.19626168 | G106: -0.1194510928 | H106: 0.007034026657 | I106: -0.1264851194 | J106: -6.08 | K106: 54 | L106: 0.03 | M106: 4.25 | N106: -0.5923420108 | P106: 2001 | AA106: 2007-10-03 | AB106: Oct-07 | AC106: 69.16304348 | AD106: 6.743043478 | AE106: 10.26005317 | AF106: 0.008895582367 | AG106: 0.1035932505 | AH106: -0.09669373087 | AK106: 15.96 | AL106: 2001
A107: 2001-05-15 | B107: May-01 | C107: 52.57 | D107: =MATCH(A107,'Natural Gas'!A:A) -> 1096 | E107: =INDEX('Natural Gas'!B:B,'Price Data'!D107) -> 4.46 | F107: 11.78699552 | G107: 0.09261266102 | H107: 0.04119575644 | I107: 0.05141690459 | J107: 4.65 | K107: 47.92 | L107: 0.18 | M107: 4.28 | N107: -0.4014413693 | P107: 2001 | AA107: 2007-11-03 | AB107: Nov-07 | AC107: 71.69 | AD107: 7.102380952 | AE107: 10.0929112 | AF107: 0.03588460168 | AG107: 0.0519186956 | AH107: -0.01642470617 | AK107: 19.35 | AL107: 2001
A108: 2001-05-16 | B108: May-01 | C108: 52.08 | D108: =MATCH(A108,'Natural Gas'!A:A) -> 1097 | E108: =INDEX('Natural Gas'!B:B,'Price Data'!D108) -> 4.46 | F108: 11.67713004 | G108: -0.009364616931 | H108: 0 | I108: -0.009364616931 | J108: -0.49 | K108: 52.57 | L108: 0 | M108: 4.46 | N108: -0.421557781 | P108: 2001 | AA108: 2007-12-03 | AB108: Dec-07 | AC108: 106.7815 | AD108: 7.1045 | AE108: 15.01021902 | AF108: 0.3984334227 | AG108: 0.0002983128587 | AH108: 0.3968979212 | AK108: 18.86 | AL108: 2001
A109: 2001-05-17 | B109: May-01 | C109: 51.45 | D109: =MATCH(A109,'Natural Gas'!A:A) -> 1098 | E109: =INDEX('Natural Gas'!B:B,'Price Data'!D109) -> 4.2 | F109: 12.25 | G109: -0.01217053562 | H109: -0.06006424074 | I109: 0.04789370512 | J109: -0.63 | K109: 52.08 | L109: -0.26 | M109: 4.46 | N109: -0.4474217389 | P109: 2001 | AA109: 2008-01-03 | AB109: Jan-08 | AC109: 96.27863636 | AD109: 8.005 | AE109: 12.01495624 | AF109: -0.103538241 | AG109: 0.1193379604 | AH109: -0.2225790101 | AK109: 20.05 | AL109: 2001
A110: 2001-05-18 | B110: May-01 | C110: 52.5 | D110: =MATCH(A110,'Natural Gas'!A:A) -> 1099 | E110: =INDEX('Natural Gas'!B:B,'Price Data'!D110) -> 4.15 | F110: 12.65060241 | G110: 0.02020270732 | H110: -0.01197619105 | I110: 0.03217889836 | J110: 1.05 | K110: 51.45 | L110: -0.05 | M110: 4.2 | N110: -0.4043151424 | P110: 2001 | AA110: 2008-02-03 | AB110: Feb-08 | AC110: 87.43714286 | AD110: 8.552857143 | AE110: 10.21992269 | AF110: -0.09632628171 | AG110: 0.06619904943 | AH110: -0.1618132069 | AK110: 21.45 | AL110: 2001
A111: 2001-05-21 | B111: May-01 | C111: 50.67 | D111: =MATCH(A111,'Natural Gas'!A:A) -> 1100 | E111: =INDEX('Natural Gas'!B:B,'Price Data'!D111) -> 4.14 | F111: 12.23913043 | G111: -0.03547915011 | H111: -0.002412546405 | I111: -0.0330666037 | J111: -1.83 | K111: 52.5 | L111: -0.01 | M111: 4.15 | N111: -0.479443782 | P111: 2001 | AA111: 2008-03-03 | AB111: Mar-08 | AC111: 86.32857143 | AD111: 9.371428571 | AE111: 9.216703545 | AF111: -0.01275955355 | AG111: 0.09140015101 | AH111: -0.1033215798 | AK111: 19.69 | AL111: 2001
A112: 2001-05-22 | B112: May-01 | C112: 48.92 | D112: =MATCH(A112,'Natural Gas'!A:A) -> 1101 | E112: =INDEX('Natural Gas'!B:B,'Price Data'!D112) -> 4.04 | F112: 12.10891089 | G112: -0.03514770867 | H112: -0.02445109586 | I112: -0.0106966128 | J112: -1.75 | K112: 50.67 | L112: -0.1 | M112: 4.14 | N112: -0.5512881094 | P112: 2001 | AA112: 2008-04-03 | AB112: Apr-08 | AC112: 100.0790909 | AD112: 10.18136364 | AE112: 9.832449547 | AF112: 0.1478001682 | AG112: 0.08289340775 | AH112: 0.06467065345 | AK112: 18.64 | AL112: 2001
A113: 2001-05-23 | B113: May-01 | C113: 45.58 | D113: =MATCH(A113,'Natural Gas'!A:A) -> 1102 | E113: =INDEX('Natural Gas'!B:B,'Price Data'!D113) -> 4.11 | F113: 11.09002433 | G113: -0.070717287 | H113: 0.01717833654 | I113: -0.08789562354 | J113: -3.34 | K113: 48.92 | L113: 0.07 | M113: 4.04 | N113: -0.68840814 | P113: 2001 | AA113: 2008-05-03 | AB113: May-08 | AC113: 113.6361905 | AD113: 11.26904762 | AE113: 10.11038457 | AF113: 0.1270412512 | AG113: 0.101500864 | AH113: 0.02787497729 | AK113: 14.81 | AL113: 2001
A114: 2001-05-24 | B114: May-01 | C114: 44.81 | D114: =MATCH(A114,'Natural Gas'!A:A) -> 1103 | E114: =INDEX('Natural Gas'!B:B,'Price Data'!D114) -> 4.12 | F114: 10.87621359 | G114: -0.01703769502 | H114: 0.002430134853 | I114: -0.01946782987 | J114: -0.77 | K114: 45.58 | L114: 0.01 | M114: 4.11 | N114: -0.7200196441 | P114: 2001 | AA114: 2008-06-03 | AB114: Jun-08 | AC114: 114.2768421 | AD114: 12.69052632 | AE114: 9.012983488 | AF114: 0.005621910333 | AG114: 0.1187959371 | AH114: -0.1148969238 | AK114: 13.97 | AL114: 2001
A115: 2001-05-29 | B115: May-01 | C115: 40.46 | D115: =MATCH(A115,'Natural Gas'!A:A) -> 1105 | E115: =INDEX('Natural Gas'!B:B,'Price Data'!D115) -> 3.86 | F115: 10.48186528 | G115: -0.1021174971 | H115: -0.06518597988 | I115: -0.03693151717 | J115: -4.35 | K115: 44.81 | L115: -0.26 | M115: 4.12 | N115: -0.8986041152 | P115: 2001 | AA115: 2008-07-03 | AB115: Jul-08 | AC115: 131.3077273 | AD115: 11.08863636 | AE115: 11.83780916 | AF115: 0.1389196876 | AG115: -0.1349349228 | AH115: 0.272632428 | AK115: 11.44 | AL115: 2001
A116: 2001-05-30 | B116: May-01 | C116: 36.75 | D116: =MATCH(A116,'Natural Gas'!A:A) -> 1106 | E116: =INDEX('Natural Gas'!B:B,'Price Data'!D116) -> 3.66 | F116: 10.04098361 | G116: -0.09617560608 | H116: -0.05320403606 | I116: -0.04297157002 | J116: -3.71 | K116: 40.46 | L116: -0.2 | M116: 3.86 | N116: -1.050914089 | P116: 2001 | AA116: 2008-08-03 | AB116: Aug-08 | AC116: 79.42761905 | AD116: 8.256666667 | AE116: 9.61485758 | AF116: -0.5026974769 | AG116: -0.2948998781 | AH116: -0.2079890089 | AK116: 9.13 | AL116: 2001
A117: 2001-05-31 | B117: May-01 | C117: 37.43 | D117: =MATCH(A117,'Natural Gas'!A:A) -> 1107 | E117: =INDEX('Natural Gas'!B:B,'Price Data'!D117) -> 3.73 | F117: 10.03485255 | G117: 0.01833429626 | H117: 0.01894508624 | I117: -0.000610789985 | J117: 0.68 | K117: 36.75 | L117: 0.07 | M117: 3.66 | N117: -1.022997436 | P117: 2001 | AA117: 2008-09-03 | AB117: Sep-08 | AC117: 71.7552381 | AD117: 7.673809524 | AE117: 9.363000346 | AF117: -0.1015852979 | AG117: -0.0732077843 | AH117: -0.02654377769 | AK117: 9.32 | AL117: 2001
A118: 2001-06-01 | B118: Jun-01 | C118: 39.02 | D118: =MATCH(A118,'Natural Gas'!A:A) -> 1108 | E118: =INDEX('Natural Gas'!B:B,'Price Data'!D118) -> 3.7 | F118: 10.54594595 | G118: 0.04160181328 | H118: -0.008075414006 | I118: 0.04967722728 | J118: 1.59 | K118: 37.43 | L118: -0.03 | M118: 3.73 | N118: -0.9577217332 | P118: 2001 | AA118: 2008-10-03 | AB118: Oct-08 | AC118: 67.43391304 | AD118: 6.736521739 | AE118: 10.03077777 | AF118: -0.06211280453 | AG118: -0.1302694413 | AH118: 0.06889235472 | AK118: 11.12 | AL118: 2001
A119: 2001-06-04 | B119: Jun-01 | C119: 36.79 | D119: =MATCH(A119,'Natural Gas'!A:A) -> 1109 | E119: =INDEX('Natural Gas'!B:B,'Price Data'!D119) -> 3.98 | F119: 9.243718593 | G119: -0.05884826608 | H119: 0.07294899965 | I119: -0.1317972657 | J119: -2.23 | K119: 39.02 | L119: 0.28 | M119: 3.7 | N119: -1.049271933 | P119: 2001 | AA119: 2008-11-03 | AB119: Nov-08 | AC119: 68.83555556 | AD119: 6.690555556 | AE119: 10.29430431 | AF119: 0.02057235505 | AG119: -0.006846815898 | AH119: 0.02593261899 | AK119: 6.93 | AL119: 2001
A120: 2001-06-05 | B120: Jun-01 | C120: 35.82 | D120: =MATCH(A120,'Natural Gas'!A:A) -> 1110 | E120: =INDEX('Natural Gas'!B:B,'Price Data'!D120) -> 3.93 | F120: 9.114503817 | G120: -0.02671967248 | H120: -0.01264239342 | I120: -0.01407727907 | J120: -0.97 | K120: 36.79 | L120: -0.05 | M120: 3.98 | N120: -1.089094218 | P120: 2001 | AA120: 2008-12-03 | AB120: Dec-08 | AC120: 63.82 | AD120: 5.824285714 | AE120: 10.99566549 | AF120: -0.07565378646 | AG120: -0.1386605456 | AH120: 0.06591038599 | AK120: 6.31 | AL120: 2001
A121: 2001-06-06 | B121: Jun-01 | C121: 35.69 | D121: =MATCH(A121,'Natural Gas'!A:A) -> 1111 | E121: =INDEX('Natural Gas'!B:B,'Price Data'!D121) -> 3.76 | F121: 9.492021277 | G121: -0.00363585913 | H121: -0.04422046848 | I121: 0.04058460935 | J121: -0.13 | K121: 35.82 | L121: -0.17 | M121: 3.93 | N121: -1.094431225 | P121: 2001 | AA121: 2009-01-03 | AB121: Jan-09 | AC121: =AVERAGEIF(B:B,AB121,C:C) -> 76.31857143 | AD121: =AVERAGEIF(B:B,AB121,E:E) -> 5.233333333 | AE121: =AVERAGEIF(B:B,AB121,F:F) -> 14.62770605 | AF121: 0.1788496879 | AG121: -0.1069879441 | AH121: 0.2854162567 | AK121: 7.37 | AL121: 2001
A122: 2001-06-07 | B122: Jun-01 | C122: 36.79 | D122: =MATCH(A122,'Natural Gas'!A:A) -> 1112 | E122: =INDEX('Natural Gas'!B:B,'Price Data'!D122) -> 3.68 | F122: 9.997282609 | G122: 0.03035553161 | H122: -0.02150620522 | I122: 0.05186173684 | J122: 1.1 | K122: 35.69 | L122: -0.08 | M122: 3.76 | N122: -1.049271933 | P122: 2001 | AA122: 2009-02-03 | AB122: Feb-09 | AC122: 54.4345 | AD122: 4.519 | AE122: 11.99105617 | AF122: -0.3379181648 | AG122: -0.1467576933 | AH122: -0.1987563527 | AK122: 9.03 | AL122: 2001
A123: 2001-06-08 | B123: Jun-01 | C123: 41.89 | D123: =MATCH(A123,'Natural Gas'!A:A) -> 1113 | E123: =INDEX('Natural Gas'!B:B,'Price Data'!D123) -> 3.62 | F123: 11.5718232 | G123: 0.1298210658 | H123: -0.01643872634 | I123: 0.1462597922 | J123: 5.1 | K123: 36.79 | L123: -0.06 | M123: 3.68 | N123: -0.8398970362 | P123: 2001 | AA123: 2009-03-03 | AB123: Mar-09 | AC123: 45.46727273 | AD123: 3.959545455 | AE123: 11.41503556 | AF123: -0.1800053576 | AG123: -0.132161496 | AH123: -0.04922965782 | AK123: 14.55 | AL123: 2001
A124: 2001-06-11 | B124: Jun-01 | C124: 51 | D124: =MATCH(A124,'Natural Gas'!A:A) -> 1114 | E124: =INDEX('Natural Gas'!B:B,'Price Data'!D124) -> 3.91 | F124: 13.04347826 | G124: 0.1967784978 | H124: 0.07706334816 | I124: 0.1197151496 | J124: 9.11 | K124: 41.89 | L124: 0.29 | M124: 3.62 | N124: -0.4658959945 | P124: 2001 | AA124: 2009-04-03 | AB124: Apr-09 | AC124: 38.98090909 | AD124: 3.499090909 | AE124: 11.15191245 | AF124: -0.1539207706 | AG124: -0.12362604 | AH124: -0.02332039147 | AK124: 21.63 | AL124: 2001
A125: 2001-06-12 | B125: Jun-01 | C125: 51.92 | D125: =MATCH(A125,'Natural Gas'!A:A) -> 1115 | E125: =INDEX('Natural Gas'!B:B,'Price Data'!D125) -> 4.05 | F125: 12.81975309 | G125: 0.01787843967 | H125: 0.03517950712 | I125: -0.01730106745 | J125: 0.92 | K125: 51 | L125: 0.14 | M125: 3.91 | N125: -0.4281264052 | P125: 2001 | AA125: 2009-05-03 | AB125: May-09 | AC125: 40.1195 | AD125: 3.8325 | AE125: 10.50720963 | AF125: 0.02879048461 | AG125: 0.09101413727 | AH125: -0.05954935032 | AK125: 21.57 | AL125: 2001
A126: 2001-06-13 | B126: Jun-01 | C126: 49 | D126: =MATCH(A126,'Natural Gas'!A:A) -> 1116 | E126: =INDEX('Natural Gas'!B:B,'Price Data'!D126) -> 4.13 | F126: 11.86440678 | G126: -0.05788377429 | H126: 0.01956052585 | I126: -0.07744430014 | J126: -2.92 | K126: 51.92 | L126: 0.08 | M126: 4.05 | N126: -0.5480037973 | P126: 2001 | AA126: 2009-06-03 | AB126: Jun-09 | AC126: 38.74 | AD126: 3.800454545 | AE126: 10.20623961 | AF126: -0.03498984243 | AG126: -0.00839665496 | AH126: -0.02906239319 | AK126: 18.09 | AL126: 2001
A127: 2001-06-14 | B127: Jun-01 | C127: 59 | D127: =MATCH(A127,'Natural Gas'!A:A) -> 1117 | E127: =INDEX('Natural Gas'!B:B,'Price Data'!D127) -> 3.92 | F127: 15.05102041 | G127: 0.1857171458 | H127: -0.05218575317 | I127: 0.237902899 | J127: 10 | K127: 49 | L127: -0.21 | M127: 4.13 | N127: -0.1374647834 | P127: 2001 | AA127: 2009-07-03 | AB127: Jul-09 | AC127: 37.53347826 | AD127: 3.38826087 | AE127: 11.07960728 | AF127: -0.03163936965 | AG127: -0.1148039049 | AH127: 0.08210697692 | AK127: 29.56 | AL127: 2001
A128: 2001-06-15 | B128: Jun-01 | C128: 45.83 | D128: =MATCH(A128,'Natural Gas'!A:A) -> 1118 | E128: =INDEX('Natural Gas'!B:B,'Price Data'!D128) -> 3.86 | F128: 11.87305699 | G128: -0.2525985454 | H128: -0.01542447033 | I128: -0.2371740751 | J128: -13.17 | K128: 59 | L128: -0.06 | M128: 3.92 | N128: -0.6781446647 | P128: 2001 | AA128: 2009-08-03 | AB128: Aug-09 | AC128: 40.33 | AD128: 3.121 | AE128: 12.99405858 | AF128: 0.07186232055 | AG128: -0.08216330864 | AH128: 0.1593859843 | AK128: 16.81 | AL128: 2001
A129: 2001-06-18 | B129: Jun-01 | C129: 57.29 | D129: =MATCH(A129,'Natural Gas'!A:A) -> 1119 | E129: =INDEX('Natural Gas'!B:B,'Price Data'!D129) -> 3.91 | F129: 14.65217391 | G129: 0.2231871899 | H129: 0.01287019052 | I129: 0.2103169994 | J129: 11.46 | K129: 45.83 | L129: 0.05 | M129: 3.86 | N129: -0.2076669547 | P129: 2001 | AA129: 2009-09-03 | AB129: Sep-09 | AC129: 33.62619048 | AD129: 2.986666667 | AE129: 11.37877298 | AF129: -0.1817903671 | AG129: -0.04399552497 | AH129: -0.1327426203 | AK129: 27.92 | AL129: 2001
A130: 2001-06-19 | B130: Jun-01 | C130: 56.78 | D130: =MATCH(A130,'Natural Gas'!A:A) -> 1120 | E130: =INDEX('Natural Gas'!B:B,'Price Data'!D130) -> 3.96 | F130: 14.33838384 | G130: -0.008941937376 | H130: 0.01270665127 | I130: -0.02164858864 | J130: -0.51 | K130: 57.29 | L130: 0.05 | M130: 3.91 | N130: -0.2286044445 | P130: 2001 | AA130: 2009-10-03 | AB130: Oct-09 | AC130: 45.41727273 | AD130: 4.007727273 | AE130: 11.39500405 | AF130: 0.3005872474 | AG130: 0.2940663774 | AH130: 0.00142541745 | AK130: 27.06 | AL130: 2001
A131: 2001-06-20 | B131: Jun-01 | C131: 44.41 | D131: =MATCH(A131,'Natural Gas'!A:A) -> 1121 | E131: =INDEX('Natural Gas'!B:B,'Price Data'!D131) -> 3.83 | F131: 11.59530026 | G131: -0.2457194817 | H131: -0.03337922207 | I131: -0.2123402597 | J131: -12.37 | K131: 56.78 | L131: -0.13 | M131: 3.96 | N131: -0.7364412047 | P131: 2001 | AA131: 2009-11-03 | AB131: Nov-09 | AC131: 40.46842105 | AD131: 3.681052632 | AE131: 11.05140537 | AF131: -0.1153705464 | AG131: -0.08502556327 | AH131: -0.03061741581 | AK131: 15.6 | AL131: 2001
A132: 2001-06-21 | B132: Jun-01 | C132: 43.08 | D132: =MATCH(A132,'Natural Gas'!A:A) -> 1122 | E132: =INDEX('Natural Gas'!B:B,'Price Data'!D132) -> 3.69 | F132: 11.67479675 | G132: -0.03040581702 | H132: -0.03723834514 | I132: 0.006832528124 | J132: -1.33 | K132: 44.41 | L132: -0.14 | M132: 3.83 | N132: -0.7910428935 | P132: 2001 | AA132: 2009-12-03 | AB132: Dec-09 | AC132: 64.16590909 | AD132: 5.347727273 | AE132: 11.92509138 | AF132: 0.4609501157 | AG132: 0.3734729093 | AH132: 0.0760870974 | AK132: 15.25 | AL132: 2001
A133: 2001-06-22 | B133: Jun-01 | C133: 46.9 | D133: =MATCH(A133,'Natural Gas'!A:A) -> 1123 | E133: =INDEX('Natural Gas'!B:B,'Price Data'!D133) -> 3.68 | F133: 12.74456522 | G133: 0.08495882316 | H133: -0.002713705872 | I133: 0.08767252904 | J133: 3.82 | K133: 43.08 | L133: -0.01 | M133: 3.69 | N133: -0.6342169902 | P133: 2001 | AA133: 2010-01-03 | AB133: Jan-10 | AC133: 66.4815 | AD133: 5.8235 | AE133: 11.35962204 | AF133: 0.03545165485 | AG133: 0.08522979375 | AH133: -0.04857955856 | AK133: 19.14 | AL133: 2001
A134: 2001-06-26 | B134: Jun-01 | C134: 98.33 | D134: =MATCH(A134,'Natural Gas'!A:A) -> 1125 | E134: =INDEX('Natural Gas'!B:B,'Price Data'!D134) -> 3.46 | F134: 28.41907514 | G134: 0.7403114933 | H134: -0.06164416311 | I134: 0.8019556565 | J134: 51.43 | K134: 46.9 | L134: -0.22 | M134: 3.68 | N134: 1.477185158 | P134: 2001 | AA134: 2010-02-03 | AB134: Feb-10 | AC134: 56.287 | AD134: 5.328 | AE134: 10.53678153 | AF134: -0.1664601108 | AG134: -0.08892552232 | AH134: -0.07519300276 | AK134: 72.11 | AL134: 2001
A135: 2001-06-28 | B135: Jun-01 | C135: 50 | D135: =MATCH(A135,'Natural Gas'!A:A) -> 1127 | E135: =INDEX('Natural Gas'!B:B,'Price Data'!D135) -> 3.2 | F135: 15.625 | G135: -0.6763061634 | H135: -0.07811777926 | I135: -0.5981883841 | J135: -48.33 | K135: 98.33 | L135: -0.26 | M135: 3.46 | N135: -0.5069498959 | P135: 2001 | AA135: 2010-03-03 | AB135: Mar-10 | AC135: 41.8173913 | AD135: 4.290869565 | AE135: 9.757460569 | AF135: -0.2971512897 | AG135: -0.216486525 | AH135: -0.07683995942 | AK135: 25.6 | AL135: 2001
A136: 2001-06-29 | B136: Jun-01 | C136: 41.83 | D136: =MATCH(A136,'Natural Gas'!A:A) -> 1128 | E136: =INDEX('Natural Gas'!B:B,'Price Data'!D136) -> 2.91 | F136: 14.37457045 | G136: -0.17840922 | H136: -0.09499772862 | I136: -0.08341149135 | J136: -8.17 | K136: 50 | L136: -0.29 | M136: 3.2 | N136: -0.8423602703 | P136: 2001 | AA136: 2010-04-03 | AB136: Apr-10 | AC136: 42.19363636 | AD136: 4.019545455 | AE136: 10.49670854 | AF136: 0.008957099686 | AG136: -0.06532058303 | AH136: 0.07302955652 | AK136: 19.46 | AL136: 2001
A137: 2001-07-02 | B137: Jul-01 | C137: 37 | D137: =MATCH(A137,'Natural Gas'!A:A) -> 1129 | E137: =INDEX('Natural Gas'!B:B,'Price Data'!D137) -> 2.92 | F137: 12.67123288 | G137: -0.1226958728 | H137: 0.003430535097 | I137: -0.1261264079 | J137: -4.83 | K137: 41.83 | L137: 0.01 | M137: 2.91 | N137: -1.040650614 | P137: 2001 | AA137: 2010-05-03 | AB137: May-10 | AC137: 50.2905 | AD137: 4.14 | AE137: 12.16426053 | AF137: 0.1755467799 | AG137: 0.02952696261 | AH137: 0.1474404525 | AK137: 14.56 | AL137: 2001
A138: 2001-07-03 | B138: Jul-01 | C138: 34.38 | D138: =MATCH(A138,'Natural Gas'!A:A) -> 1130 | E138: =INDEX('Natural Gas'!B:B,'Price Data'!D138) -> 3 | F138: 11.46 | G138: -0.07344291269 | H138: 0.02702867239 | I138: -0.1004715851 | J138: -2.62 | K138: 37 | L138: 0.08 | M138: 2.92 | N138: -1.148211836 | P138: 2001 | AA138: 2010-06-03 | AB138: Jun-10 | AC138: 54.49681818 | AD138: 4.801363636 | AE138: 11.357236 | AF138: 0.08032612551 | AG138: 0.1482041806 | AH138: -0.0686471141 | AK138: 11.38 | AL138: 2001
A139: 2001-07-05 | B139: Jul-01 | C139: 36.31 | D139: =MATCH(A139,'Natural Gas'!A:A) -> 1131 | E139: =INDEX('Natural Gas'!B:B,'Price Data'!D139) -> 3.09 | F139: 11.75080906 | G139: 0.05461818547 | H139: 0.02955880224 | I139: 0.02505938323 | J139: 1.93 | K139: 34.38 | L139: 0.09 | M139: 3 | N139: -1.068977806 | P139: 2001 | AA139: 2010-07-03 | AB139: Jul-10 | AC139: 78.02095238 | AD139: 4.626666667 | AE139: 16.88167264 | AF139: 0.3588350929 | AG139: -0.03706330207 | AH139: 0.3963735004 | AK139: 12.68 | AL139: 2001
A140: 2001-07-06 | B140: Jul-01 | C140: 42.11 | D140: =MATCH(A140,'Natural Gas'!A:A) -> 1132 | E140: =INDEX('Natural Gas'!B:B,'Price Data'!D140) -> 2.99 | F140: 14.08361204 | G140: 0.1481920567 | H140: -0.03289770351 | I140: 0.1810897603 | J140: 5.8 | K140: 36.31 | L140: -0.1 | M140: 3.09 | N140: -0.8308651779 | P140: 2001 | AA140: 2010-08-03 | AB140: Aug-10 | AC140: 66.46545455 | AD140: 4.315 | AE140: 15.44240005 | AF140: -0.1602950787 | AG140: -0.06973934188 | AH140: -0.08911159802 | AK140: 19.18 | AL140: 2001
A141: 2001-07-09 | B141: Jul-01 | C141: 44.92 | D141: =MATCH(A141,'Natural Gas'!A:A) -> 1133 | E141: =INDEX('Natural Gas'!B:B,'Price Data'!D141) -> 3.1 | F141: 14.49032258 | G141: 0.0645978877 | H141: 0.03612872409 | I141: 0.02846916361 | J141: 2.81 | K141: 42.11 | L141: 0.11 | M141: 2.99 | N141: -0.715503715 | P141: 2001 | AA141: 2010-09-03 | AB141: Sep-10 | AC141: 50.73866667 | AD141: 3.943333333 | AE141: 12.86478842 | AF141: -0.2699940561 | AG141: -0.09007093521 | AH141: -0.1826229773 | AK141: 21.22 | AL141: 2001
A142: 2001-07-10 | B142: Jul-01 | C142: 42.12 | D142: =MATCH(A142,'Natural Gas'!A:A) -> 1134 | E142: =INDEX('Natural Gas'!B:B,'Price Data'!D142) -> 3.2 | F142: 13.1625 | G142: -0.0643604426 | H142: 0.03174869831 | I142: -0.09610914092 | J142: -2.8 | K142: 44.92 | L142: 0.1 | M142: 3.1 | N142: -0.8304546389 | P142: 2001 | AA142: 2010-10-03 | AB142: Oct-10 | AC142: 41.12052632 | AD142: 3.436315789 | AE142: 11.97233674 | AF142: -0.2101808555 | AG142: -0.1376264833 | AH142: -0.07189528243 | AK142: 17.72 | AL142: 2001
A143: 2001-07-11 | B143: Jul-01 | C143: 40.78 | D143: =MATCH(A143,'Natural Gas'!A:A) -> 1135 | E143: =INDEX('Natural Gas'!B:B,'Price Data'!D143) -> 3.21 | F143: 12.70404984 | G143: -0.03233092212 | H143: 0.003120127336 | I143: -0.03545104946 | J143: -1.34 | K143: 42.12 | L143: 0.01 | M143: 3.2 | N143: -0.8854668667 | P143: 2001 | AA143: 2010-11-03 | AB143: Nov-10 | AC143: 48.16368421 | AD143: 3.721052632 | AE143: 12.9684153 | AF143: 0.1580978769 | AG143: 0.0796066877 | AH143: 0.07991809211 | AK143: 16.31 | AL143: 2001
A144: 2001-07-12 | B144: Jul-01 | C144: 37.5 | D144: =MATCH(A144,'Natural Gas'!A:A) -> 1136 | E144: =INDEX('Natural Gas'!B:B,'Price Data'!D144) -> 3.29 | F144: 11.39817629 | G144: -0.08385083217 | H144: 0.02461662764 | I144: -0.1084674598 | J144: -3.28 | K144: 40.78 | L144: 0.08 | M144: 3.21 | N144: -1.020123663 | P144: 2001 | AA144: 2010-12-03 | AB144: Dec-10 | AC144: 76.02882353 | AD144: 4.275882353 | AE144: 17.81962045 | AF144: 0.4565072279 | AG144: 0.1389838857 | AH144: 0.3177833141 | AK144: 12.47 | AL144: 2001
A145: 2001-07-13 | B145: Jul-01 | C145: 42.5 | D145: =MATCH(A145,'Natural Gas'!A:A) -> 1137 | E145: =INDEX('Natural Gas'!B:B,'Price Data'!D145) -> 3.15 | F145: 13.49206349 | G145: 0.125163143 | H145: -0.04348511194 | I145: 0.1686482549 | J145: 5 | K145: 37.5 | L145: -0.14 | M145: 3.29 | N145: -0.8148541563 | P145: 2001 | AA145: 2011-01-03 | AB145: Jan-11 | AC145: 77.31047619 | AD145: 4.488095238 | AE145: 17.20509465 | AF145: 0.01671694745 | AG145: 0.04843790916 | AH145: -0.0350945825 | AK145: 18.45 | AL145: 2001
A146: 2001-07-16 | B146: Jul-01 | C146: 41.5 | D146: =MATCH(A146,'Natural Gas'!A:A) -> 1138 | E146: =INDEX('Natural Gas'!B:B,'Price Data'!D146) -> 3.08 | F146: 13.47402597 | G146: -0.02381064869 | H146: -0.02247285585 | I146: -0.001337792842 | J146: -1 | K146: 42.5 | L146: -0.07 | M146: 3.15 | N146: -0.8559080577 | P146: 2001 | AA146: 2011-02-03 | AB146: Feb-11 | AC146: 61.307 | AD146: 4.08 | AE146: 15.00432104 | AF146: -0.2319354439 | AG146: -0.09533140019 | AH146: -0.1368673114 | AK146: 17.94 | AL146: 2001
A147: 2001-07-17 | B147: Jul-01 | C147: 40.57 | D147: =MATCH(A147,'Natural Gas'!A:A) -> 1139 | E147: =INDEX('Natural Gas'!B:B,'Price Data'!D147) -> 3.14 | F147: 12.92038217 | G147: -0.02266455002 | H147: 0.01929320293 | I147: -0.04195775295 | J147: -0.93 | K147: 41.5 | L147: 0.06 | M147: 3.08 | N147: -0.894088186 | P147: 2001 | AA147: 2011-03-03 | AB147: Mar-11 | AC147: 52.24652174 | AD147: 3.973913043 | AE147: 13.18958833 | AF147: -0.1599207099 | AG147: -0.02634572589 | AH147: -0.1289104731 | AK147: 16.59 | AL147: 2001
A148: 2001-07-18 | B148: Jul-01 | C148: 37.3 | D148: =MATCH(A148,'Natural Gas'!A:A) -> 1140 | E148: =INDEX('Natural Gas'!B:B,'Price Data'!D148) -> 3.15 | F148: 11.84126984 | G148: -0.08403555057 | H148: 0.003179652917 | I148: -0.08721520349 | J148: -3.27 | K148: 40.57 | L148: 0.01 | M148: 3.14 | N148: -1.028334444 | P148: 2001 | AA148: 2011-04-03 | AB148: Apr-11 | AC148: 47.9575 | AD148: 4.235 | AE148: 11.32604853 | AF148: -0.08565811701 | AG148: 0.06363206557 | AH148: -0.1523225036 | AK148: 13.25 | AL148: 2001
A149: 2001-07-19 | B149: Jul-01 | C149: 37.67 | D149: =MATCH(A149,'Natural Gas'!A:A) -> 1141 | E149: =INDEX('Natural Gas'!B:B,'Price Data'!D149) -> 3.01 | F149: 12.51495017 | G149: 0.009870695054 | H149: -0.04546237408 | I149: 0.05533306913 | J149: 0.37 | K149: 37.3 | L149: -0.14 | M149: 3.15 | N149: -1.0131445 | P149: 2001 | AA149: 2011-05-03 | AB149: May-11 | AC149: 49.13142857 | AD149: 4.310952381 | AE149: 11.39429302 | AF149: 0.0241837211 | AG149: 0.01777552166 | AH149: 0.006007365946 | AK149: 14.6 | AL149: 2001
A150: 2001-07-20 | B150: Jul-01 | C150: 66.5 | D150: =MATCH(A150,'Natural Gas'!A:A) -> 1142 | E150: =INDEX('Natural Gas'!B:B,'Price Data'!D150) -> 2.97 | F150: 22.39057239 | G150: 0.568337926 | H150: -0.01337812595 | I150: 0.5817160519 | J150: 28.83 | K150: 37.67 | L150: -0.04 | M150: 3.01 | N150: 0.1704394771 | P150: 2001 | AA150: 2011-06-03 | AB150: Jun-11 | AC150: 52.24772727 | AD150: 4.536818182 | AE150: 11.47018124 | AF150: 0.06149746959 | AG150: 0.05106707558 | AH150: 0.00663811397 | AK150: 43.71 | AL150: 2001
A151: 2001-07-23 | B151: Jul-01 | C151: 74.83 | D151: =MATCH(A151,'Natural Gas'!A:A) -> 1143 | E151: =INDEX('Natural Gas'!B:B,'Price Data'!D151) -> 3.02 | F151: 24.7781457 | G151: 0.1180169264 | H151: 0.01669487857 | I151: 0.1013220479 | J151: 8.33 | K151: 66.5 | L151: 0.05 | M151: 2.97 | N151: 0.5124184757 | P151: 2001 | AA151: 2011-07-03 | AB151: Jul-11 | AC151: 69.98 | AD151: 4.4235 | AE151: 15.72218208 | AF151: 0.2922130942 | AG151: -0.0252946874 | AH151: 0.3153218546 | AK151: 51.69 | AL151: 2001
A152: 2001-07-24 | B152: Jul-01 | C152: 79.91 | D152: =MATCH(A152,'Natural Gas'!A:A) -> 1144 | E152: =INDEX('Natural Gas'!B:B,'Price Data'!D152) -> 3 | F152: 26.63666667 | G152: 0.06568212729 | H152: -0.006644542719 | I152: 0.07232667001 | J152: 5.08 | K152: 74.83 | L152: -0.02 | M152: 3.02 | N152: 0.7209722947 | P152: 2001 | AA152: 2011-08-03 | AB152: Aug-11 | AC152: 48.10782609 | AD152: 4.054782609 | AE152: 11.85735948 | AF152: -0.3747646186 | AG152: -0.08703416249 | AH152: -0.2821238587 | AK152: 56.91 | AL152: 2001
A153: 2001-07-25 | B153: Jul-01 | C153: 45.16 | D153: =MATCH(A153,'Natural Gas'!A:A) -> 1145 | E153: =INDEX('Natural Gas'!B:B,'Price Data'!D153) -> 3.06 | F153: 14.75816993 | G153: -0.5706892621 | H153: 0.0198026273 | I153: -0.5904918894 | J153: -34.75 | K153: 79.91 | L153: 0.06 | M153: 3 | N153: -0.7056507786 | P153: 2001 | AA153: 2011-09-03 | AB153: Sep-11 | AC153: =AVERAGEIF(B:B,AB153,C:C) -> 44.94809524 | AD153: 3.896190476 | AE153: 11.55661475 | AF153: -0.06793648349 | AG153: -0.03989780067 | AH153: -0.02569074921 | AK153: 21.74 | AL153: 2001
A154: 2001-07-26 | B154: =TEXT(A154,"mmm-yy") -> Jul-01 | C154: 46.03 | D154: =MATCH(A154,'Natural Gas'!A:A) -> 1146 | E154: =INDEX('Natural Gas'!B:B,'Price Data'!D154) -> 3.26 | F154: =C154/E154 -> 14.1196319 | G154: 0.01908161855 | H154: 0.06331227941 | I154: -0.04423066087 | J154: 0.87 | K154: 45.16 | L154: 0.2 | M154: 3.06 | N154: -0.6699338844 | P154: 2001 | AA154: 2011-10-03 | AB154: =TEXT(AA154,"mmm-yy") -> Oct-11 | AC154: 47.14761905 | AD154: 3.565714286 | AE154: 13.2387558 | AF154: 0.04777512551 | AG154: -0.08863488033 | AH154: 0.1358905944 | AK154: =MAX((C154-E154*$D$5-$D$4),0) -> 21.21 | AL154: =YEAR(A154) -> 2001
A155: 2001-07-27 | B155: Jul-01 | C155: 45.19 | D155: =MATCH(A155,'Natural Gas'!A:A) -> 1147 | E155: =INDEX('Natural Gas'!B:B,'Price Data'!D155) -> 3.06 | F155: 14.76797386 | G155: =LN(C155/C154) -> -0.01841753441 | H155: =LN(E155/E154) -> -0.06331227941 | I155: =LN(F155/F154) -> 0.04489474501 | J155: =C155-C154 -> -0.84 | K155: =C154 -> 46.03 | L155: =E155-E154 -> -0.2 | M155: =E154 -> 3.26 | N155: =(C155-$N$21)/$N$22 -> -0.7044191616 | P155: =YEAR(A155) -> 2001 | AA155: =EDATE(AA154,1) -> 2011-11-03 | AB155: Nov-11 | AC155: 40.5785 | AD155: 3.2585 | AE155: 12.47953876 | AF155: =LN(AC155/AC154) -> -0.1500451407 | AG155: =LN(AD155/AD154) -> -0.09009742766 | AH155: =LN(AE155/AE154) -> -0.05905816941 | AK155: 21.77 | AL155: 2001
A156: 2001-07-30 | B156: Jul-01 | C156: 41.75 | D156: =MATCH(A156,'Natural Gas'!A:A) -> 1148 | E156: =INDEX('Natural Gas'!B:B,'Price Data'!D156) -> 3.28 | F156: 12.72865854 | G156: -0.07917637213 | H156: 0.06942850643 | I156: -0.1486048786 | J156: -3.44 | K156: 45.19 | L156: 0.22 | M156: 3.06 | N156: -0.8456445824 | P156: 2001 | AA156: 2011-12-03 | AB156: Dec-11 | AC156: 43.144 | AD156: 3.1605 | AE156: 13.75325868 | AF156: 0.06130498834 | AG156: -0.03053672386 | AH156: 0.0971853875 | AK156: 16.79 | AL156: 2001
A157: 2001-07-31 | B157: Jul-01 | C157: 51.21 | D157: =MATCH(A157,'Natural Gas'!A:A) -> 1149 | E157: =INDEX('Natural Gas'!B:B,'Price Data'!D157) -> 3.31 | F157: 15.47129909 | G157: 0.2042353742 | H157: 0.009104766993 | I157: 0.1951306072 | J157: 9.46 | K157: 41.75 | L157: 0.03 | M157: 3.28 | N157: -0.4572746752 | P157: 2001 | AK157: 26.04 | AL157: 2001
A158: 2001-08-01 | B158: Aug-01 | C158: 94.66 | D158: =MATCH(A158,'Natural Gas'!A:A) -> 1150 | E158: =INDEX('Natural Gas'!B:B,'Price Data'!D158) -> 3.27 | F158: 28.94801223 | G158: 0.614356699 | H158: -0.01215820448 | I158: 0.6265149035 | J158: 43.45 | K158: 51.21 | L158: -0.04 | M158: 3.31 | N158: 1.32651734 | P158: 2001 | AK158: 69.77 | AL158: 2001
A159: 2001-08-02 | B159: Aug-01 | C159: 107.5 | D159: =MATCH(A159,'Natural Gas'!A:A) -> 1151 | E159: =INDEX('Natural Gas'!B:B,'Price Data'!D159) -> 3.15 | F159: 34.12698413 | G159: 0.1271993231 | H159: -0.03738753207 | I159: 0.1645868552 | J159: 12.84 | K159: 94.66 | L159: -0.12 | M159: 3.27 | N159: 1.853649434 | P159: 2001 | AK159: 83.45 | AL159: 2001
A160: 2001-08-03 | B160: Aug-01 | C160: 85.44 | D160: =MATCH(A160,'Natural Gas'!A:A) -> 1152 | E160: =INDEX('Natural Gas'!B:B,'Price Data'!D160) -> 3.06 | F160: 27.92156863 | G160: -0.2296764724 | H160: -0.02898753687 | I160: -0.2006889355 | J160: -22.06 | K160: 107.5 | L160: -0.09 | M160: 3.15 | N160: 0.9480003694 | P160: 2001 | AK160: 62.02 | AL160: 2001
A161: 2001-08-13 | B161: Aug-01 | C161: 41.05 | D161: =MATCH(A161,'Natural Gas'!A:A) -> 1158 | E161: =INDEX('Natural Gas'!B:B,'Price Data'!D161) -> 3 | F161: 13.68333333 | G161: -0.7330235393 | H161: -0.0198026273 | I161: -0.713220912 | J161: -44.39 | K161: 85.44 | L161: -0.06 | M161: 3.06 | N161: -0.8743823134 | P161: 2001 | AK161: 18.05 | AL161: 2001
A162: 2001-08-15 | B162: Aug-01 | C162: 45.42 | D162: =MATCH(A162,'Natural Gas'!A:A) -> 1160 | E162: =INDEX('Natural Gas'!B:B,'Price Data'!D162) -> 3.15 | F162: 14.41904762 | G162: 0.1011617008 | H162: 0.04879016417 | I162: 0.05237153661 | J162: 4.37 | K162: 41.05 | L162: 0.15 | M162: 3 | N162: -0.6949767643 | P162: 2001 | AK162: 21.37 | AL162: 2001
A163: 2001-08-16 | B163: Aug-01 | C163: 47.44 | D163: =MATCH(A163,'Natural Gas'!A:A) -> 1161 | E163: =INDEX('Natural Gas'!B:B,'Price Data'!D163) -> 3.46 | F163: 13.71098266 | G163: 0.04351321801 | H163: 0.09386613623 | I163: -0.05035291822 | J163: 2.02 | K163: 45.42 | L163: 0.31 | M163: 3.15 | N163: -0.6120478835 | P163: 2001 | AK163: 21.22 | AL163: 2001
A164: 2001-08-17 | B164: Aug-01 | C164: 46.96 | D164: =MATCH(A164,'Natural Gas'!A:A) -> 1162 | E164: =INDEX('Natural Gas'!B:B,'Price Data'!D164) -> 3.24 | F164: 14.49382716 | G164: -0.01016957917 | H164: -0.06569525927 | I164: 0.0555256801 | J164: -0.48 | K164: 47.44 | L164: -0.22 | M164: 3.46 | N164: -0.6317537561 | P164: 2001 | AK164: 22.28 | AL164: 2001
A165: 2001-08-20 | B165: Aug-01 | C165: 46.38 | D165: =MATCH(A165,'Natural Gas'!A:A) -> 1163 | E165: =INDEX('Natural Gas'!B:B,'Price Data'!D165) -> 3.17 | F165: 14.63091483 | G165: -0.01242784369 | H165: -0.02184174192 | I165: 0.009413898223 | J165: -0.58 | K165: 46.96 | L165: -0.07 | M165: 3.24 | N165: -0.6555650189 | P165: 2001 | AK165: 22.19 | AL165: 2001
A166: 2001-08-21 | B166: Aug-01 | C166: 46.75 | D166: =MATCH(A166,'Natural Gas'!A:A) -> 1164 | E166: =INDEX('Natural Gas'!B:B,'Price Data'!D166) -> 3.18 | F166: 14.70125786 | G166: 0.007945923907 | H166: 0.003149608903 | I166: 0.004796315004 | J166: 0.37 | K166: 46.38 | L166: 0.01 | M166: 3.17 | N166: -0.6403750754 | P166: 2001 | AK166: 22.49 | AL166: 2001
A167: 2001-08-22 | B167: Aug-01 | C167: 46.19 | D167: =MATCH(A167,'Natural Gas'!A:A) -> 1165 | E167: =INDEX('Natural Gas'!B:B,'Price Data'!D167) -> 3.2 | F167: 14.434375 | G167: -0.01205093129 | H167: 0.006269613014 | I167: -0.01832054431 | J167: -0.56 | K167: 46.75 | L167: 0.02 | M167: 3.18 | N167: -0.6633652602 | P167: 2001 | AK167: 21.79 | AL167: 2001
A168: 2001-08-23 | B168: Aug-01 | C168: 44.33 | D168: =MATCH(A168,'Natural Gas'!A:A) -> 1166 | E168: =INDEX('Natural Gas'!B:B,'Price Data'!D168) -> 2.87 | F168: 15.44599303 | G168: -0.04110167569 | H168: -0.10883878 | I168: 0.06773710435 | J168: -1.86 | K168: 46.19 | L168: -0.33 | M168: 3.2 | N168: -0.7397255168 | P168: 2001 | AK168: 22.24 | AL168: 2001
A169: 2001-08-24 | B169: Aug-01 | C169: 48 | D169: =MATCH(A169,'Natural Gas'!A:A) -> 1167 | E169: =INDEX('Natural Gas'!B:B,'Price Data'!D169) -> 2.77 | F169: 17.32851986 | G169: 0.07953936215 | H169: -0.03546470957 | I169: 0.1150040717 | J169: 3.67 | K169: 44.33 | L169: -0.1 | M169: 2.87 | N169: -0.5890576987 | P169: 2001 | AK169: 26.61 | AL169: 2001
A170: 2001-08-27 | B170: Aug-01 | C170: 45.83 | D170: =MATCH(A170,'Natural Gas'!A:A) -> 1168 | E170: =INDEX('Natural Gas'!B:B,'Price Data'!D170) -> 2.61 | F170: 17.55938697 | G170: -0.04626211239 | H170: -0.05949709886 | I170: 0.01323498648 | J170: -2.17 | K170: 48 | L170: -0.16 | M170: 2.77 | N170: -0.6781446647 | P170: 2001 | AK170: 25.56 | AL170: 2001
A171: 2001-08-28 | B171: Aug-01 | C171: 45.2 | D171: =MATCH(A171,'Natural Gas'!A:A) -> 1169 | E171: =INDEX('Natural Gas'!B:B,'Price Data'!D171) -> 2.57 | F171: 17.58754864 | G171: -0.01384181168 | H171: -0.01544432243 | I171: 0.001602510745 | J171: -0.63 | K171: 45.83 | L171: -0.04 | M171: 2.61 | N171: -0.7040086226 | P171: 2001 | AK171: 25.21 | AL171: 2001
A172: 2001-08-29 | B172: Aug-01 | C172: 42.43 | D172: =MATCH(A172,'Natural Gas'!A:A) -> 1170 | E172: =INDEX('Natural Gas'!B:B,'Price Data'!D172) -> 2.46 | F172: 17.24796748 | G172: -0.06324142762 | H172: -0.04374454896 | I172: -0.01949687866 | J172: -2.77 | K172: 45.2 | L172: -0.11 | M172: 2.57 | N172: -0.8177279294 | P172: 2001 | AK172: 23.21 | AL172: 2001
A173: 2001-08-30 | B173: Aug-01 | C173: 39 | D173: =MATCH(A173,'Natural Gas'!A:A) -> 1171 | E173: =INDEX('Natural Gas'!B:B,'Price Data'!D173) -> 2.47 | F173: 15.78947368 | G173: -0.08429401308 | H173: 0.004056800696 | I173: -0.08835081378 | J173: -3.43 | K173: 42.43 | L173: 0.01 | M173: 2.46 | N173: -0.9585428112 | P173: 2001 | AK173: 19.71 | AL173: 2001
A174: 2001-08-31 | B174: Aug-01 | C174: 43.5 | D174: =MATCH(A174,'Natural Gas'!A:A) -> 1172 | E174: =INDEX('Natural Gas'!B:B,'Price Data'!D174) -> 2.15 | F174: 20.23255814 | G174: 0.109199292 | H174: -0.1387503085 | I174: 0.2479496005 | J174: 4.5 | K174: 39 | L174: -0.32 | M174: 2.47 | N174: -0.7738002549 | P174: 2001 | AK174: 26.45 | AL174: 2001
A175: 2001-09-04 | B175: Sep-01 | C175: 41.62 | D175: =MATCH(A175,'Natural Gas'!A:A) -> 1173 | E175: =INDEX('Natural Gas'!B:B,'Price Data'!D175) -> 2.23 | F175: 18.66367713 | G175: -0.04418011713 | H175: 0.03653374333 | I175: -0.08071386046 | J175: -1.88 | K175: 43.5 | L175: 0.08 | M175: 2.15 | N175: -0.8509815896 | P175: 2001 | AK175: 24.01 | AL175: 2001
A176: 2001-09-05 | B176: Sep-01 | C176: 40.09 | D176: =MATCH(A176,'Natural Gas'!A:A) -> 1174 | E176: =INDEX('Natural Gas'!B:B,'Price Data'!D176) -> 2.34 | F176: 17.13247863 | G176: -0.03745389431 | H176: 0.0481493439 | I176: -0.08560323821 | J176: -1.53 | K176: 41.62 | L176: 0.11 | M176: 2.23 | N176: -0.9137940587 | P176: 2001 | AK176: 21.71 | AL176: 2001
A177: 2001-09-06 | B177: Sep-01 | C177: 44.25 | D177: =MATCH(A177,'Natural Gas'!A:A) -> 1175 | E177: =INDEX('Natural Gas'!B:B,'Price Data'!D177) -> 2.43 | F177: 18.20987654 | G177: 0.0987284448 | H177: 0.03774032798 | I177: 0.06098811682 | J177: 4.16 | K177: 40.09 | L177: 0.09 | M177: 2.34 | N177: -0.7430098289 | P177: 2001 | AK177: 25.24 | AL177: 2001
A178: 2001-09-07 | B178: Sep-01 | C178: 44.83 | D178: =MATCH(A178,'Natural Gas'!A:A) -> 1176 | E178: =INDEX('Natural Gas'!B:B,'Price Data'!D178) -> 2.36 | F178: 18.99576271 | G178: 0.01302218671 | H178: -0.02922963831 | I178: 0.04225182503 | J178: 0.58 | K178: 44.25 | L178: -0.07 | M178: 2.43 | N178: -0.7191985661 | P178: 2001 | AK178: 26.31 | AL178: 2001
A179: 2001-09-10 | B179: Sep-01 | C179: 45 | D179: =MATCH(A179,'Natural Gas'!A:A) -> 1177 | E179: =INDEX('Natural Gas'!B:B,'Price Data'!D179) -> 2.38 | F179: 18.90756303 | G179: 0.003784931603 | H179: 0.008438868646 | I179: -0.004653937043 | J179: 0.17 | K179: 44.83 | L179: 0.02 | M179: 2.36 | N179: -0.7122194029 | P179: 2001 | AK179: 26.34 | AL179: 2001
A180: 2001-09-11 | B180: Sep-01 | C180: 37.92 | D180: =MATCH(A180,'Natural Gas'!A:A) -> 1178 | E180: =INDEX('Natural Gas'!B:B,'Price Data'!D180) -> 2.38 | F180: 15.93277311 | G180: -0.1711838124 | H180: 0 | I180: -0.1711838124 | J180: -7.08 | K180: 45 | L180: 0 | M180: 2.38 | N180: -1.002881025 | P180: 2001 | AK180: 19.26 | AL180: 2001
A181: 2001-09-12 | B181: Sep-01 | C181: 39.25 | D181: =MATCH(A181,'Natural Gas'!A:A) -> 1179 | E181: =INDEX('Natural Gas'!B:B,'Price Data'!D181) -> 2.44 | F181: 16.08606557 | G181: 0.03447276684 | H181: 0.02489755162 | I181: 0.00957521522 | J181: 1.33 | K181: 37.92 | L181: 0.06 | M181: 2.38 | N181: -0.9482793359 | P181: 2001 | AK181: 20.17 | AL181: 2001
A182: 2001-09-13 | B182: Sep-01 | C182: 38.75 | D182: =MATCH(A182,'Natural Gas'!A:A) -> 1180 | E182: =INDEX('Natural Gas'!B:B,'Price Data'!D182) -> 2.39 | F182: 16.21338912 | G182: -0.01282068843 | H182: -0.02070467336 | I182: 0.007883984933 | J182: -0.5 | K182: 39.25 | L182: -0.05 | M182: 2.44 | N182: -0.9688062866 | P182: 2001 | AK182: 20.02 | AL182: 2001
A183: 2001-09-14 | B183: Sep-01 | C183: 41.79 | D183: =MATCH(A183,'Natural Gas'!A:A) -> 1181 | E183: =INDEX('Natural Gas'!B:B,'Price Data'!D183) -> 2.41 | F183: 17.34024896 | G183: 0.07552632066 | H183: 0.008333381559 | I183: 0.0671929391 | J183: 3.04 | K183: 38.75 | L183: 0.02 | M183: 2.39 | N183: -0.8440024263 | P183: 2001 | AK183: 22.92 | AL183: 2001
A184: 2001-09-17 | B184: Sep-01 | C184: 38.69 | D184: =MATCH(A184,'Natural Gas'!A:A) -> 1182 | E184: =INDEX('Natural Gas'!B:B,'Price Data'!D184) -> 2.36 | F184: 16.3940678 | G184: -0.07707590775 | H184: -0.02096512847 | I184: -0.05611077928 | J184: -3.1 | K184: 41.79 | L184: -0.05 | M184: 2.41 | N184: -0.9712695206 | P184: 2001 | AK184: 20.17 | AL184: 2001
A185: 2001-09-18 | B185: Sep-01 | C185: 38.22 | D185: =MATCH(A185,'Natural Gas'!A:A) -> 1183 | E185: =INDEX('Natural Gas'!B:B,'Price Data'!D185) -> 2.18 | F185: 17.53211009 | G185: -0.0122222299 | H185: -0.07933674224 | I185: 0.06711451234 | J185: -0.47 | K185: 38.69 | L185: -0.18 | M185: 2.36 | N185: -0.9905648543 | P185: 2001 | AK185: 20.96 | AL185: 2001
A186: 2001-09-19 | B186: Sep-01 | C186: 37.86 | D186: =MATCH(A186,'Natural Gas'!A:A) -> 1184 | E186: =INDEX('Natural Gas'!B:B,'Price Data'!D186) -> 2.13 | F186: 17.77464789 | G186: -0.009463793031 | H186: -0.02320289708 | I186: 0.01373910405 | J186: -0.36 | K186: 38.22 | L186: -0.05 | M186: 2.18 | N186: -1.005344259 | P186: 2001 | AK186: 20.95 | AL186: 2001
A187: 2001-09-20 | B187: Sep-01 | C187: 40.88 | D187: =MATCH(A187,'Natural Gas'!A:A) -> 1185 | E187: =INDEX('Natural Gas'!B:B,'Price Data'!D187) -> 2.06 | F187: 19.84466019 | G187: 0.07674580011 | H187: -0.03341599692 | I187: 0.110161797 | J187: 3.02 | K187: 37.86 | L187: -0.07 | M187: 2.13 | N187: -0.8813614766 | P187: 2001 | AK187: 24.46 | AL187: 2001
A188: 2001-09-21 | B188: Sep-01 | C188: 40.13 | D188: =MATCH(A188,'Natural Gas'!A:A) -> 1186 | E188: =INDEX('Natural Gas'!B:B,'Price Data'!D188) -> 2.04 | F188: 19.67156863 | G188: -0.01851676162 | H188: -0.009756174945 | I188: -0.008760586671 | J188: -0.75 | K188: 40.88 | L188: -0.02 | M188: 2.06 | N188: -0.9121519026 | P188: 2001 | AK188: 23.85 | AL188: 2001
A189: 2001-09-24 | B189: Sep-01 | C189: 44 | D189: =MATCH(A189,'Natural Gas'!A:A) -> 1187 | E189: =INDEX('Natural Gas'!B:B,'Price Data'!D189) -> 1.99 | F189: 22.11055276 | G189: 0.09206544964 | H189: -0.02481516912 | I189: 0.1168806188 | J189: 3.87 | K189: 40.13 | L189: -0.05 | M189: 2.04 | N189: -0.7532733042 | P189: 2001 | AK189: 28.07 | AL189: 2001
A190: 2001-09-25 | B190: Sep-01 | C190: 41.22 | D190: =MATCH(A190,'Natural Gas'!A:A) -> 1188 | E190: =INDEX('Natural Gas'!B:B,'Price Data'!D190) -> 1.94 | F190: 21.24742268 | G190: -0.06526605846 | H190: -0.02544666566 | I190: -0.03981939279 | J190: -2.78 | K190: 44 | L190: -0.05 | M190: 1.99 | N190: -0.8674031501 | P190: 2001 | AK190: 25.64 | AL190: 2001
A191: 2001-09-26 | B191: Sep-01 | C191: 35.36 | D191: =MATCH(A191,'Natural Gas'!A:A) -> 1189 | E191: =INDEX('Natural Gas'!B:B,'Price Data'!D191) -> 1.88 | F191: 18.80851064 | G191: -0.1533423377 | H191: -0.03141619623 | I191: -0.1219261415 | J191: -5.86 | K191: 41.22 | L191: -0.06 | M191: 1.94 | N191: -1.107979012 | P191: 2001 | AK191: 20.2 | AL191: 2001
A192: 2001-09-27 | B192: Sep-01 | C192: 31.67 | D192: =MATCH(A192,'Natural Gas'!A:A) -> 1190 | E192: =INDEX('Natural Gas'!B:B,'Price Data'!D192) -> 1.9 | F192: 16.66842105 | G192: -0.1102113772 | H192: 0.01058210933 | I192: -0.1207934865 | J192: -3.69 | K192: 35.36 | L192: 0.02 | M192: 1.88 | N192: -1.259467908 | P192: 2001 | AK192: 16.37 | AL192: 2001
A193: 2001-09-28 | B193: Sep-01 | C193: 36.6 | D193: =MATCH(A193,'Natural Gas'!A:A) -> 1191 | E193: =INDEX('Natural Gas'!B:B,'Price Data'!D193) -> 1.8 | F193: 20.33333333 | G193: 0.1446783799 | H193: -0.05406722127 | I193: 0.1987456011 | J193: 4.93 | K193: 31.67 | L193: -0.1 | M193: 1.9 | N193: -1.057072175 | P193: 2001 | AK193: 22 | AL193: 2001
A194: 2001-10-01 | B194: Oct-01 | C194: 36.5 | D194: =MATCH(A194,'Natural Gas'!A:A) -> 1192 | E194: =INDEX('Natural Gas'!B:B,'Price Data'!D194) -> 1.74 | F194: 20.97701149 | G194: -0.002735979819 | H194: -0.03390155168 | I194: 0.03116557186 | J194: -0.1 | K194: 36.6 | L194: -0.06 | M194: 1.8 | N194: -1.061177565 | P194: 2001 | AK194: 22.32 | AL194: 2001
A195: 2001-10-02 | B195: Oct-01 | C195: 36.71 | D195: =MATCH(A195,'Natural Gas'!A:A) -> 1193 | E195: =INDEX('Natural Gas'!B:B,'Price Data'!D195) -> 1.83 | F195: 20.06010929 | G195: 0.00573693692 | H195: 0.05043085363 | I195: -0.04469391671 | J195: 0.21 | K195: 36.5 | L195: 0.09 | M195: 1.74 | N195: -1.052556245 | P195: 2001 | AK195: 21.9 | AL195: 2001
A196: 2001-10-03 | B196: Oct-01 | C196: 35.5 | D196: =MATCH(A196,'Natural Gas'!A:A) -> 1194 | E196: =INDEX('Natural Gas'!B:B,'Price Data'!D196) -> 1.97 | F196: 18.02030457 | G196: -0.03351650103 | H196: 0.0737175759 | I196: -0.1072340769 | J196: -1.21 | K196: 36.71 | L196: 0.14 | M196: 1.83 | N196: -1.102231466 | P196: 2001 | AK196: 19.71 | AL196: 2001
A197: 2001-10-04 | B197: Oct-01 | C197: 37.21 | D197: =MATCH(A197,'Natural Gas'!A:A) -> 1195 | E197: =INDEX('Natural Gas'!B:B,'Price Data'!D197) -> 2.13 | F197: 17.46948357 | G197: 0.04704484588 | H197: 0.07808843697 | I197: -0.03104359109 | J197: 1.71 | K197: 35.5 | L197: 0.16 | M197: 1.97 | N197: -1.032029295 | P197: 2001 | AK197: 20.3 | AL197: 2001
A198: 2001-10-05 | B198: Oct-01 | C198: 35.71 | D198: =MATCH(A198,'Natural Gas'!A:A) -> 1196 | E198: =INDEX('Natural Gas'!B:B,'Price Data'!D198) -> 2.11 | F198: 16.92417062 | G198: -0.04114678075 | H198: -0.009434032233 | I198: -0.03171274852 | J198: -1.5 | K198: 37.21 | L198: -0.02 | M198: 2.13 | N198: -1.093610147 | P198: 2001 | AK198: 18.94 | AL198: 2001
A199: 2001-10-08 | B199: Oct-01 | C199: 34.26 | D199: =MATCH(A199,'Natural Gas'!A:A) -> 1197 | E199: =INDEX('Natural Gas'!B:B,'Price Data'!D199) -> 2.02 | F199: 16.96039604 | G199: -0.04145226871 | H199: -0.04359043607 | I199: 0.002138167364 | J199: -1.45 | K199: 35.71 | L199: -0.09 | M199: 2.11 | N199: -1.153138304 | P199: 2001 | AK199: 18.12 | AL199: 2001
A200: 2001-10-09 | B200: Oct-01 | C200: 33.56 | D200: =MATCH(A200,'Natural Gas'!A:A) -> 1198 | E200: =INDEX('Natural Gas'!B:B,'Price Data'!D200) -> 2.11 | F200: 15.90521327 | G200: -0.0206436113 | H200: 0.04359043607 | I200: -0.06423404737 | J200: -0.7 | K200: 34.26 | L200: 0.09 | M200: 2.02 | N200: -1.181876035 | P200: 2001 | AK200: 16.79 | AL200: 2001
A201: 2001-10-10 | B201: Oct-01 | C201: 33 | D201: =MATCH(A201,'Natural Gas'!A:A) -> 1199 | E201: =INDEX('Natural Gas'!B:B,'Price Data'!D201) -> 2.22 | F201: 14.86486486 | G201: -0.01682732013 | H201: 0.0508192484 | I201: -0.06764656853 | J201: -0.56 | K201: 33.56 | L201: 0.11 | M201: 2.11 | N201: -1.20486622 | P201: 2001 | AK201: 15.46 | AL201: 2001
A202: 2001-10-11 | B202: Oct-01 | C202: 31.65 | D202: =MATCH(A202,'Natural Gas'!A:A) -> 1200 | E202: =INDEX('Natural Gas'!B:B,'Price Data'!D202) -> 2.41 | F202: 13.13278008 | G202: -0.04176941288 | H202: 0.08211955162 | I202: -0.1238889645 | J202: -1.35 | K202: 33 | L202: 0.19 | M202: 2.22 | N202: -1.260288986 | P202: 2001 | AK202: 12.78 | AL202: 2001
A203: 2001-10-12 | B203: Oct-01 | C203: 32.36 | D203: =MATCH(A203,'Natural Gas'!A:A) -> 1201 | E203: =INDEX('Natural Gas'!B:B,'Price Data'!D203) -> 2.28 | F203: 14.19298246 | G203: 0.0221849436 | H203: -0.05545130454 | I203: 0.07763624814 | J203: 0.71 | K203: 31.65 | L203: -0.13 | M203: 2.41 | N203: -1.231140716 | P203: 2001 | AK203: 14.4 | AL203: 2001
... 2047 more rows

Sheet Natural Gas
A2: Back to Contents | B2: Data 1: Henry Hub Gulf Coast Natural Gas Spot Price ($/MMBTU)
A3: Sourcekey | B3: RNGWHHD
B4: Henry Hub Gulf Coast Natural Gas Spot Price ($/MMBTU)
A5: 1997-01-07 | B5: 3.82
A6: 1997-01-08 | B6: 3.8
A7: 1997-01-09 | B7: 3.61
A8: 1997-01-10 | B8: 3.92 | F8: 1998-01-20 | G8: =MATCH(F8,A:A) -> 265 | H8: =INDEX(B:B,G8) -> 2.12
A9: 1997-01-13 | B9: 4
A10: 1997-01-14 | B10: 4.01
A11: 1997-01-15 | B11: 4.34
A12: 1997-01-16 | B12: 4.71
A13: 1997-01-17 | B13: 3.91
A14: 1997-01-20 | B14: 3.26
A15: 1997-01-21 | B15: 2.99
A16: 1997-01-22 | B16: 3.05
A17: 1997-01-23 | B17: 2.96
A18: 1997-01-24 | B18: 2.62
A19: 1997-01-27 | B19: 2.98
A20: 1997-01-28 | B20: 3.05
A21: 1997-01-29 | B21: 2.91
A22: 1997-01-30 | B22: 2.86
A23: 1997-01-31 | B23: 2.77
A24: 1997-02-03 | B24: 2.49
A25: 1997-02-04 | B25: 2.59
A26: 1997-02-05 | B26: 2.65
A27: 1997-02-06 | B27: 2.51
A28: 1997-02-07 | B28: 2.39
A29: 1997-02-10 | B29: 2.42
A30: 1997-02-11 | B30: 2.34
A31: 1997-02-12 | B31: 2.42
A32: 1997-02-13 | B32: 2.22
A33: 1997-02-14 | B33: 2.12
A34: 1997-02-18 | B34: 1.84
A35: 1997-02-19 | B35: 1.95
A36: 1997-02-20 | B36: 1.92
A37: 1997-02-21 | B37: 1.92
A38: 1997-02-24 | B38: 1.92
A39: 1997-02-25 | B39: 1.77
A40: 1997-02-26 | B40: 1.81
A41: 1997-02-27 | B41: 1.8
A42: 1997-02-28 | B42: 1.78
A43: 1997-03-03 | B43: 1.8
A44: 1997-03-04 | B44: 1.87
A45: 1997-03-05 | B45: 1.92
A46: 1997-03-06 | B46: 1.82
A47: 1997-03-07 | B47: 1.89
A48: 1997-03-10 | B48: 1.95
A49: 1997-03-11 | B49: 1.92
A50: 1997-03-12 | B50: 1.96
A51: 1997-03-13 | B51: 1.98
A52: 1997-03-14 | B52: 1.97
A53: 1997-03-17 | B53: 2.01
A54: 1997-03-18 | B54: 1.91
A55: 1997-03-19 | B55: 1.88
A56: 1997-03-20 | B56: 1.88
A57: 1997-03-21 | B57: 1.87
A58: 1997-03-24 | B58: 1.8
A59: 1997-03-25 | B59: 1.85
A60: 1997-03-26 | B60: 1.85
A61: 1997-03-27 | B61: 1.84
A62: 1997-03-31 | B62: 1.84
A63: 1997-04-01 | B63: 1.95
A64: 1997-04-02 | B64: 1.85
A65: 1997-04-03 | B65: 1.87
A66: 1997-04-04 | B66: 1.91
A67: 1997-04-07 | B67: 1.99
A68: 1997-04-08 | B68: 2.01
A69: 1997-04-09 | B69: 1.96
A70: 1997-04-10 | B70: 1.97
A71: 1997-04-11 | B71: 1.98
A72: 1997-04-14 | B72: 2
A73: 1997-04-15 | B73: 2
A74: 1997-04-16 | B74: 2.02
A75: 1997-04-17 | B75: 2.08
A76: 1997-04-18 | B76: 2.1
A77: 1997-04-21 | B77: 2.09
A78: 1997-04-22 | B78: 2.1
A79: 1997-04-23 | B79: 2.22
A80: 1997-04-24 | B80: 2.11
A81: 1997-04-25 | B81: 2.16
A82: 1997-04-28 | B82: 2.1
A83: 1997-04-29 | B83: 2.09
A84: 1997-04-30 | B84: 2.16
A85: 1997-05-01 | B85: 2.19
A86: 1997-05-02 | B86: 2.21
A87: 1997-05-05 | B87: 2.23
A88: 1997-05-06 | B88: 2.25
A89: 1997-05-07 | B89: 2.34
A90: 1997-05-08 | B90: 2.33
A91: 1997-05-09 | B91: 2.3
A92: 1997-05-12 | B92: 2.27
A93: 1997-05-13 | B93: 2.18
A94: 1997-05-14 | B94: 2.22
A95: 1997-05-15 | B95: 2.25
A96: 1997-05-16 | B96: 2.19
A97: 1997-05-19 | B97: 2.25
A98: 1997-05-20 | B98: 2.215
A99: 1997-05-21 | B99: 2.205
A100: 1997-05-22 | B100: 2.215
A101: 1997-05-23 | B101: 2.195
A102: 1997-05-27 | B102: 2.285
A103: 1997-05-28 | B103: 2.335
A104: 1997-05-29 | B104: 2.285
A105: 1997-05-30 | B105: 2.225
A106: 1997-06-02 | B106: 2.195
A107: 1997-06-03 | B107: 2.105
A108: 1997-06-04 | B108: 2.19
A109: 1997-06-05 | B109: 2.18
A110: 1997-06-06 | B110: 2.19
A111: 1997-06-09 | B111: 2.19
A112: 1997-06-10 | B112: 2.16
A113: 1997-06-11 | B113: 2.16
A114: 1997-06-12 | B114: 2.14
A115: 1997-06-13 | B115: 2.15
A116: 1997-06-16 | B116: 2.2
A117: 1997-06-17 | B117: 2.2
A118: 1997-06-18 | B118: 2.22
A119: 1997-06-19 | B119: 2.23
A120: 1997-06-20 | B120: 2.25
A121: 1997-06-23 | B121: 2.29
A122: 1997-06-24 | B122: 2.32
A123: 1997-06-25 | B123: 2.32
A124: 1997-06-26 | B124: 2.23
A125: 1997-06-27 | B125: 2.17
A126: 1997-06-30 | B126: 2.17
A127: 1997-07-01 | B127: 2.16
A128: 1997-07-02 | B128: 2.14
A129: 1997-07-03 | B129: 2.11
A130: 1997-07-07 | B130: 2.13
A131: 1997-07-08 | B131: 2.13
A132: 1997-07-09 | B132: 2.16
A133: 1997-07-10 | B133: 2.15
A134: 1997-07-11 | B134: 2.16
A135: 1997-07-14 | B135: 2.18
A136: 1997-07-15 | B136: 2.21
A137: 1997-07-16 | B137: 2.24
A138: 1997-07-17 | B138: 2.29
A139: 1997-07-18 | B139: 2.26
A140: 1997-07-21 | B140: 2.17
A141: 1997-07-22 | B141: 2.18
A142: 1997-07-23 | B142: 2.2
A143: 1997-07-24 | B143: 2.24
A144: 1997-07-25 | B144: 2.22
A145: 1997-07-28 | B145: 2.19
A146: 1997-07-29 | B146: 2.23
A147: 1997-07-30 | B147: 2.19
A148: 1997-07-31 | B148: 2.23
A149: 1997-08-01 | B149: 2.24
A150: 1997-08-04 | B150: 2.26
A151: 1997-08-05 | B151: 2.33
A152: 1997-08-06 | B152: 2.38
A153: 1997-08-07 | B153: 2.5
A154: 1997-08-08 | B154: 2.38
A155: 1997-08-11 | B155: 2.53
A156: 1997-08-12 | B156: 2.56
A157: 1997-08-13 | B157: 2.45
A158: 1997-08-14 | B158: 2.57
A159: 1997-08-15 | B159: 2.53
A160: 1997-08-18 | B160: 2.56
A161: 1997-08-19 | B161: 2.61
A162: 1997-08-20 | B162: 2.62
A163: 1997-08-21 | B163: 2.45
A164: 1997-08-22 | B164: 2.47
A165: 1997-08-25 | B165: 2.53
A166: 1997-08-26 | B166: 2.58
A167: 1997-08-27 | B167: 2.51
A168: 1997-08-28 | B168: 2.57
A169: 1997-08-29 | B169: 2.69
A170: 1997-09-02 | B170: 2.82
A171: 1997-09-03 | B171: 2.86
A172: 1997-09-04 | B172: 2.73
A173: 1997-09-05 | B173: 2.67
A174: 1997-09-08 | B174: 2.67
A175: 1997-09-09 | B175: 2.74
A176: 1997-09-10 | B176: 2.74
A177: 1997-09-11 | B177: 2.78
A178: 1997-09-12 | B178: 2.86
A179: 1997-09-15 | B179: 2.88
A180: 1997-09-16 | B180: 2.83
A181: 1997-09-17 | B181: 2.75
A182: 1997-09-18 | B182: 2.84
A183: 1997-09-19 | B183: 2.94
A184: 1997-09-22 | B184: 2.98
A185: 1997-09-23 | B185: 3.09
A186: 1997-09-24 | B186: 3.03
A187: 1997-09-25 | B187: 3.05
A188: 1997-09-26 | B188: 3.24
A189: 1997-09-29 | B189: 3.09
A190: 1997-09-30 | B190: 2.96
A191: 1997-10-01 | B191: 3.08
A192: 1997-10-02 | B192: 2.97
A193: 1997-10-03 | B193: 2.91
A194: 1997-10-06 | B194: 2.96
A195: 1997-10-07 | B195: 2.81
A196: 1997-10-08 | B196: 2.8
A197: 1997-10-09 | B197: 2.8
A198: 1997-10-10 | B198: 2.78
A199: 1997-10-13 | B199: 2.87
A200: 1997-10-14 | B200: 2.84
A201: 1997-10-15 | B201: 2.84
... 3606 more rows

Sheet Sheet2

Sheet Sheet3
